{"text_format":"1","workbook":"xlsx","n_sheets":5,"sheets":["Settings","ПРОГНОЗ","DataPort","V31V34","TEMP"],"not_rendered":{"charts":0,"images":0,"macros":1,"external_links":0,"defined_names":1,"comments":0,"pivot_tables":0},"unopened":[],"bounds":{"document_bytes":16777216,"sheet_cells":100000,"rows_first":2000,"rows_last":500,"rows_between":2000,"halvings":0,"cell_chars":16384,"cell_head_chars":4096},"cells_cut":0,"cells_raw":0,"read":"whole","date_system":"1900"}

{"sheet":"Settings","index":0,"n_rows":15,"n_cols":9,"rows_kept":15,"cut":false,"hidden":true,"merged":[]}
["GMT +0",5,{"$f":"TODAY()-7","v":"2021-09-22"},9,"FLASHSCORE.COM (EN)",3,"No AutoSave",1,{"$f":"IF(H1=1,-1,IF(H1=2,5,IF(H1=3,10,IF(H1=4,20,0))))","v":-1}]
["GMT +1",null,{"$f":"TODAY()-6","v":"2021-09-23"},null,"SOCCERSTAND.COM (EN)",null,"AutoSave 5"]
["GMT +2",null,{"$f":"TODAY()-5","v":"2021-09-24"},null,"SOCCERSTAND.COM (RU)",null,"AutoSave 10"]
["GMT +3",null,{"$f":"TODAY()-4","v":"2021-09-25"},null,"MYSCORE.RU (RU)",null,"AutoSave 20"]
["GMT +4",null,{"$f":"TODAY()-3","v":"2021-09-26"},null,"MYSCORE.COM.UA (RU)"]
["GMT +5",null,{"$f":"TODAY() -2","v":"2021-09-27"}]
["GMT +6",null,"Вчера"]
["GMT +7",null,"Сегодня"]
["GMT +8",null,"Завтра"]
["GMT +9",null,{"$f":"TODAY()+2","v":"2021-10-01"}]
["GMT +10",null,{"$f":"TODAY()+3","v":"2021-10-02"}]
["GMT +11",null,{"$f":"TODAY()+4","v":"2021-10-03"}]
["GMT +12",null,{"$f":"TODAY()+5","v":"2021-10-04"}]
["GMT +13",null,{"$f":"TODAY()+6","v":"2021-10-05"}]
[null,null,{"$f":"TODAY()+7","v":"2021-10-06"}]

{"sheet":"ПРОГНОЗ","index":1,"n_rows":146,"n_cols":54,"rows_kept":146,"cut":false,"hidden":false,"merged":[[0,0,2,1],[0,2,2,13],[0,14,0,21],[1,14,1,21],[2,14,2,21]]}
["RADARIO BET"]
[]
[]
["Дата / Время","Чемпионат","Команда 1","Команда 2","Вероятность П1","Вероятность П2","ПРОГНОЗ ИСХОД","ПРОГНОЗ ТОТАЛ","Кеф\nП1","Кеф\nX","Кеф\nП2","Кеф\nТБ 2.5","Кеф\nТМ 2.5","СЧЕТ МАТЧА",null,null,null,null,null,null,null,null,null,null,null,null,null,null,null,null,null,null,null,null,null,null,null,null,null,null,null,null,null,null,null,null,null,null,null,null,null,null,null,"id"]
["01.10.2021 00:00","ECUADOR: Serie B","Ind. Juniors","Atl. Porteno",0.66388888888888897,0.33611111111111108,"1Х","ТБ1,5",null,null,null,null,null,null,null,null,null,null,null,null,null,null,null,null,null,null,null,null,null,null,null,null,null,null,null,null,null,null,null,null,null,null,null,null,null,null,null,null,null,null,null,null,null,"tpk2wr0T"]
["01.10.2021 00:00","VENEZUELA: Primera Division - First stage","Mineros","Caracas",0.45331695331695326,0.54668304668304679,"Х2","",null,null,null,null,null,null,null,null,null,null,null,null,null,null,null,null,null,null,null,null,null,null,null,null,null,null,null,null,null,null,null,null,null,null,null,null,null,null,null,null,null,null,null,null,null,"KAS4NVDO"]
["01.10.2021 00:30","PERU: Liga 2 - Clausura","Chavelines","Comerciantes Unidos",0.8999980000079999,0.10000199999200005,"1Х","ТБ1,5",null,null,null,null,null,null,null,null,null,null,null,null,null,null,null,null,null,null,null,null,null,null,null,null,null,null,null,null,null,null,null,null,null,null,null,null,null,null,null,null,null,null,null,null,null,"6yUgkubg"]
["01.10.2021 00:30","PERU: Liga 2 - Clausura","Union Comercio","Juan Aurich",0.67500000000000004,0.32500000000000001,"Ф1(0)","ТБ1,5",null,null,null,null,null,null,null,null,null,null,null,null,null,null,null,null,null,null,null,null,null,null,null,null,null,null,null,null,null,null,null,null,null,null,null,null,null,null,null,null,null,null,null,null,null,"KvYclaDa"]
["01.10.2021 00:30","PERU: Liga 2 - Clausura","Union Huaral","Grau",0.52272727272727271,0.47727272727272729,"Ф2(0)","",null,null,null,null,null,null,null,null,null,null,null,null,null,null,null,null,null,null,null,null,null,null,null,null,null,null,null,null,null,null,null,null,null,null,null,null,null,null,null,null,null,null,null,null,null,"CEUkjLrm"]
["29.09.2021 23:00","ARGENTINA: Torneo Federal","CDJU Gualeguaychu","Gimnasia y Tiro",0.39386401326699833,0.60613598673300162,"Х2","ТМ3,5",null,null,null,null,null,null,null,null,null,null,null,null,null,null,null,null,null,null,null,null,null,null,null,null,null,null,null,null,null,null,null,null,null,null,null,null,null,null,null,null,null,null,null,null,null,"dnIKqKsM"]
["29.09.2021 23:00","ARGENTINA: Torneo Federal","Cipolletti","Sansinena",0.70000000000000007,0.29999999999999993,"Ф1(0)","",null,null,null,null,null,null,null,null,null,null,null,null,null,null,null,null,null,null,null,null,null,null,null,null,null,null,null,null,null,null,null,null,null,null,null,null,null,null,null,null,null,null,null,null,null,"8W6h1V5Q"]
["29.09.2021 23:00","ARGENTINA: Torneo Federal","Club Sportivo Penarol","Huracan Las Heras",0.69791666666666663,0.30208333333333337,"1Х","",null,null,null,null,null,null,null,null,null,null,null,null,null,null,null,null,null,null,null,null,null,null,null,null,null,null,null,null,null,null,null,null,null,null,null,null,null,null,null,null,null,null,null,null,null,"b1P1v8bD"]
["29.09.2021 23:00","ARGENTINA: Torneo Federal","Gimnasia E.R.","Defensores Belgrano VR",0.54761904761904756,0.45238095238095238,"Х2","",null,null,null,null,null,null,null,null,null,null,null,null,null,null,null,null,null,null,null,null,null,null,null,null,null,null,null,null,null,null,null,null,null,null,null,null,null,null,null,null,null,null,null,null,null,"S6Q3m2rc"]
["29.09.2021 23:00","ARGENTINA: Torneo Federal","Independiente Chivilcoy","Juventud Unida Universitario",0.50956937799043067,0.49043062200956933,"1Х","ТМ3,5",null,null,null,null,null,null,null,null,null,null,null,null,null,null,null,null,null,null,null,null,null,null,null,null,null,null,null,null,null,null,null,null,null,null,null,null,null,null,null,null,null,null,null,null,null,"vc2l2BjK"]
["29.09.2021 23:00","CHILE: Primera Division","S. Wanderers","U. De Chile",0.20833333333333334,0.79166666666666663,"Х2","",null,null,null,null,null,null,null,null,null,null,null,null,null,null,null,null,null,null,null,null,null,null,null,null,null,null,null,null,null,null,null,null,null,null,null,null,null,null,null,null,null,null,null,null,null,"vq7r6puj"]
["29.09.2021 23:00","ITALY: Serie C - Group A","AlbinoLeffe","FeralpiSalo",0.58333333333333326,0.41666666666666669,"Ф1(0)","",null,null,null,null,null,null,null,null,null,null,null,null,null,null,null,null,null,null,null,null,null,null,null,null,null,null,null,null,null,null,null,null,null,null,null,null,null,null,null,null,null,null,null,null,null,"z7nCkdh7"]
["29.09.2021 23:00","ITALY: Serie C - Group A","Piacenza","Legnago Salus",0.6767676767676768,0.3232323232323232,"1Х","",null,null,null,null,null,null,null,null,null,null,null,null,null,null,null,null,null,null,null,null,null,null,null,null,null,null,null,null,null,null,null,null,null,null,null,null,null,null,null,null,null,null,null,null,null,"MFfaBwFQ"]
["29.09.2021 23:00","ITALY: Serie C - Group A","Seregno","Pergolettese",0.70454545454545459,0.29545454545454541,"Х2","",null,null,null,null,null,null,null,null,null,null,null,null,null,null,null,null,null,null,null,null,null,null,null,null,null,null,null,null,null,null,null,null,null,null,null,null,null,null,null,null,null,null,null,null,null,"IotV5Hxl"]
["29.09.2021 23:00","NORTHERN IRELAND: Premiership Women","Crusaders W","Sion Swifts W",0.61149425287356318,0.38850574712643687,"1Х","ТБ1,5",null,null,null,null,null,null,null,null,null,null,null,null,null,null,null,null,null,null,null,null,null,null,null,null,null,null,null,null,null,null,null,null,null,null,null,null,null,null,null,null,null,null,null,null,null,"KIEdLiVM"]
["29.09.2021 23:00","SCOTLAND: Highland League","Nairn County","Fort William",0.9411193342609584,5.8880665739041604E-2,"1Х","ТБ1,5",null,null,null,null,null,null,null,null,null,null,null,null,null,null,null,null,null,null,null,null,null,null,null,null,null,null,null,null,null,null,null,null,null,null,null,null,null,null,null,null,null,null,null,null,null,"bVvwxP1K"]
["29.09.2021 23:00","VENEZUELA: Segunda Division","Yaracuy","El Vigia",0.63903743315508021,0.36096256684491979,"Ф1(0)","",null,null,null,null,null,null,null,null,null,null,null,null,null,null,null,null,null,null,null,null,null,null,null,null,null,null,null,null,null,null,null,null,null,null,null,null,null,null,null,null,null,null,null,null,null,"Msmn65Fp"]
["29.09.2021 23:20","ARGENTINA: Torneo Federal","Boca Unidos","Sarmiento Resistencia",0.54126984126984123,0.45873015873015877,"1Х","ТБ1,5",null,null,null,null,null,null,null,null,null,null,null,null,null,null,null,null,null,null,null,null,null,null,null,null,null,null,null,null,null,null,null,null,null,null,null,null,null,null,null,null,null,null,null,null,null,"2PIGp0SF"]
["29.09.2021 23:30","NORWAY: Division 3 - Group 6","Tromso 2","Finnsnes",0.87499500004999953,0.12500499995000047,"1Х","ТБ1,5",null,null,null,null,null,null,null,null,null,null,null,null,null,null,null,null,null,null,null,null,null,null,null,null,null,null,null,null,null,null,null,null,null,null,null,null,null,null,null,null,null,null,null,null,null,"69yfdHH8"]
["29.09.2021 23:30","URUGUAY: Segunda Division","Rampla Juniors","Villa Teresa",0.55000000000000004,0.45,"1Х","",null,null,null,null,null,null,null,null,null,null,null,null,null,null,null,null,null,null,null,null,null,null,null,null,null,null,null,null,null,null,null,null,null,null,null,null,null,null,null,null,null,null,null,null,null,"p0bKaZn3"]
["29.09.2021 23:30","VENEZUELA: Segunda Division","Urena","Titanes",0.5641025641025641,0.43589743589743596,"","",null,null,null,null,null,null,null,null,null,null,null,null,null,null,null,null,null,null,null,null,null,null,null,null,null,null,null,null,null,null,null,null,null,null,null,null,null,null,null,null,null,null,null,null,null,"QB1GBRiN"]
["30.09.2021 00:00","COSTA RICA: Liga de Ascenso - Apertura","Cariari Pococi","Ad Aserri",0.56315789473684208,0.43684210526315786,"Х2","",null,null,null,null,null,null,null,null,null,null,null,null,null,null,null,null,null,null,null,null,null,null,null,null,null,null,null,null,null,null,null,null,null,null,null,null,null,null,null,null,null,null,null,null,null,"Maj1iwKj"]
["30.09.2021 00:00","COSTA RICA: Liga de Ascenso - Apertura","Limon","Puerto Golfito FC",1.8749609383788859E-5,0.99998125039061625,"Х2","ТБ1,5",null,null,null,null,null,null,null,null,null,null,null,null,null,null,null,null,null,null,null,null,null,null,null,null,null,null,null,null,null,null,null,null,null,null,null,null,null,null,null,null,null,null,null,null,null,"z3vqGMdi"]
["30.09.2021 00:00","ECUADOR: Serie B","Gualaceo","LDU Portoviejo",0.74275362318840576,0.25724637681159418,"Ф1(0)","",null,null,null,null,null,null,null,null,null,null,null,null,null,null,null,null,null,null,null,null,null,null,null,null,null,null,null,null,null,null,null,null,null,null,null,null,null,null,null,null,null,null,null,null,null,"2gjbvOpN"]
["30.09.2021 00:00","ECUADOR: Serie B","Santo Domingo","EL Nacional",0.56363636363636371,0.43636363636363629,"1Х","ТМ3,5",null,null,null,null,null,null,null,null,null,null,null,null,null,null,null,null,null,null,null,null,null,null,null,null,null,null,null,null,null,null,null,null,null,null,null,null,null,null,null,null,null,null,null,null,null,"6RdktpGA"]
["30.09.2021 00:00","VENEZUELA: Segunda Division","Rayo Zuliano","Academia Rey",0.38181818181818183,0.61818181818181817,"Х2","",null,null,null,null,null,null,null,null,null,null,null,null,null,null,null,null,null,null,null,null,null,null,null,null,null,null,null,null,null,null,null,null,null,null,null,null,null,null,null,null,null,null,null,null,null,"MXqYT87i"]
["30.09.2021 01:00","COSTA RICA: Liga de Ascenso - Apertura","Barrio Mexico","Santa Ana",0.58333333333333326,0.41666666666666669,"Ф1(0)","",null,null,null,null,null,null,null,null,null,null,null,null,null,null,null,null,null,null,null,null,null,null,null,null,null,null,null,null,null,null,null,null,null,null,null,null,null,null,null,null,null,null,null,null,null,"EgwmFtCc"]
["30.09.2021 01:30","ARGENTINA: Torneo Federal","Chaco For Ever","Crucero del Norte",0.84137847701288315,0.15862152298711685,"Ф1(0)","",null,null,null,null,null,null,null,null,null,null,null,null,null,null,null,null,null,null,null,null,null,null,null,null,null,null,null,null,null,null,null,null,null,null,null,null,null,null,null,null,null,null,null,null,null,"2TYHPbjj"]
["30.09.2021 01:30","CANADA: Canadian Premier League","HFX Wanderers","Atl. Ottawa",0.66326530612244894,0.33673469387755101,"1Х","",null,null,null,null,null,null,null,null,null,null,null,null,null,null,null,null,null,null,null,null,null,null,null,null,null,null,null,null,null,null,null,null,null,null,null,null,null,null,null,null,null,null,null,null,null,"Y1AmdQJu"]
["30.09.2021 01:30","CHILE: Primera Division","Antofagasta","Union La Calera",0.50027247956403265,0.4997275204359673,"1Х","",null,null,null,null,null,null,null,null,null,null,null,null,null,null,null,null,null,null,null,null,null,null,null,null,null,null,null,null,null,null,null,null,null,null,null,null,null,null,null,null,null,null,null,null,null,"IZ5n54fd"]
["30.09.2021 02:00","BRAZIL: Serie B","Brasil de Pelotas","Brusque",0.32078853046594979,0.67921146953405021,"1Х","",null,null,null,null,null,null,null,null,null,null,null,null,null,null,null,null,null,null,null,null,null,null,null,null,null,null,null,null,null,null,null,null,null,null,null,null,null,null,null,null,null,null,null,null,null,"WCbPA9v0"]
["30.09.2021 02:00","BRAZIL: Serie B","Guarani","Cruzeiro",0.67352941176470593,0.32647058823529407,"1Х","",null,null,null,null,null,null,null,null,null,null,null,null,null,null,null,null,null,null,null,null,null,null,null,null,null,null,null,null,null,null,null,null,null,null,null,null,null,null,null,null,null,null,null,null,null,"QFeHCV9m"]
["30.09.2021 02:00","MEXICO: Liga MX - Apertura","Atl. San Luis","U.A.N.L.- Tigres",0.47802197802197799,0.52197802197802201,"1Х","",null,null,null,null,null,null,null,null,null,null,null,null,null,null,null,null,null,null,null,null,null,null,null,null,null,null,null,null,null,null,null,null,null,null,null,null,null,null,null,null,null,null,null,null,null,"6Jjrmiwh"]
["30.09.2021 02:00","MEXICO: Liga de Expansion MX - Apertura","Alebrijes Oaxaca","Tapatio",0.74999600003199973,0.25000399996800027,"1Х","",null,null,null,null,null,null,null,null,null,null,null,null,null,null,null,null,null,null,null,null,null,null,null,null,null,null,null,null,null,null,null,null,null,null,null,null,null,null,null,null,null,null,null,null,null,"CGNimcVb"]
["30.09.2021 02:00","URUGUAY: Segunda Division","Rocha","Atenas",0.51428571428571423,0.48571428571428571,"Х2","",null,null,null,null,null,null,null,null,null,null,null,null,null,null,null,null,null,null,null,null,null,null,null,null,null,null,null,null,null,null,null,null,null,null,null,null,null,null,null,null,null,null,null,null,null,"69aG0FXd"]
["30.09.2021 03:00","USA: MLS","Atlanta Utd","Inter Miami",0.54354765161878715,0.4564523483812129,"1Х","",null,null,null,null,null,null,null,null,null,null,null,null,null,null,null,null,null,null,null,null,null,null,null,null,null,null,null,null,null,null,null,null,null,null,null,null,null,null,null,null,null,null,null,null,null,"rFAJsUMo"]
["30.09.2021 03:00","USA: MLS","Toronto FC","FC Cincinnati",0.4746062359369978,0.5253937640630022,"1Х","",null,null,null,null,null,null,null,null,null,null,null,null,null,null,null,null,null,null,null,null,null,null,null,null,null,null,null,null,null,null,null,null,null,null,null,null,null,null,null,null,null,null,null,null,null,"4jWyrhJD"]
["30.09.2021 03:30","USA: MLS","Club de Foot Montreal","New England Revolution",0.43345587255920515,0.56654412744079485,"Х2","ТБ1,5",null,null,null,null,null,null,null,null,null,null,null,null,null,null,null,null,null,null,null,null,null,null,null,null,null,null,null,null,null,null,null,null,null,null,null,null,null,null,null,null,null,null,null,null,null,"ry2IjpND"]
["30.09.2021 03:30","USA: MLS","DC United","Minnesota United",0.66610025488530167,0.33389974511469839,"Ф1(0)","",null,null,null,null,null,null,null,null,null,null,null,null,null,null,null,null,null,null,null,null,null,null,null,null,null,null,null,null,null,null,null,null,null,null,null,null,null,null,null,null,null,null,null,null,null,"4UbSu8ib"]
["30.09.2021 03:30","USA: MLS","New York Red Bulls","Philadelphia Union",0.57032348804500699,0.42967651195499301,"1Х","",null,null,null,null,null,null,null,null,null,null,null,null,null,null,null,null,null,null,null,null,null,null,null,null,null,null,null,null,null,null,null,null,null,null,null,null,null,null,null,null,null,null,null,null,null,"faHyJppo"]
["30.09.2021 03:30","USA: USL Championship","Atlanta United 2","Louisville City",0.35334979932077804,0.64665020067922208,"Х2","ТБ1,5",null,null,null,null,null,null,null,null,null,null,null,null,null,null,null,null,null,null,null,null,null,null,null,null,null,null,null,null,null,null,null,null,null,null,null,null,null,null,null,null,null,null,null,null,null,"QqJOctec"]
["30.09.2021 03:45","CANADA: Canadian Premier League","Valour","Pacific FC",0.52462121212121215,0.4753787878787879,"Х2","",null,null,null,null,null,null,null,null,null,null,null,null,null,null,null,null,null,null,null,null,null,null,null,null,null,null,null,null,null,null,null,null,null,null,null,null,null,null,null,null,null,null,null,null,null,"xbDu3gLl"]
["30.09.2021 04:00","CHILE: Primera Division","U. Catolica","Melipilla",0.71257896182367486,0.28742103817632519,"Ф1(0)","ТБ1,5",null,null,null,null,null,null,null,null,null,null,null,null,null,null,null,null,null,null,null,null,null,null,null,null,null,null,null,null,null,null,null,null,null,null,null,null,null,null,null,null,null,null,null,null,null,"KvpVTmXd"]
["30.09.2021 04:00","USA: MLS","Chicago Fire","New York City",0.46763997591812156,0.53236002408187844,"Х2","",null,null,null,null,null,null,null,null,null,null,null,null,null,null,null,null,null,null,null,null,null,null,null,null,null,null,null,null,null,null,null,null,null,null,null,null,null,null,null,null,null,null,null,null,null,"M59Ntlxh"]
["30.09.2021 04:00","USA: MLS","FC Dallas","Sporting Kansas City",0.35384615384615381,0.64615384615384608,"Х2","ТБ1,5",null,null,null,null,null,null,null,null,null,null,null,null,null,null,null,null,null,null,null,null,null,null,null,null,null,null,null,null,null,null,null,null,null,null,null,null,null,null,null,null,null,null,null,null,null,"IX2WvS64"]
["30.09.2021 04:00","USA: NISA - Fall Season","New Amsterdam","Detroit",0.27500000000000002,0.72499999999999998,"Ф2(0)","",null,null,null,null,null,null,null,null,null,null,null,null,null,null,null,null,null,null,null,null,null,null,null,null,null,null,null,null,null,null,null,null,null,null,null,null,null,null,null,null,null,null,null,null,null,"bmfOqaTm"]
["30.09.2021 04:05","MEXICO: Liga de Expansion MX - Apertura","Cancun","Tampico Madero",0.4642857142857143,0.5357142857142857,"Х2","",null,null,null,null,null,null,null,null,null,null,null,null,null,null,null,null,null,null,null,null,null,null,null,null,null,null,null,null,null,null,null,null,null,null,null,null,null,null,null,null,null,null,null,null,null,"UiIdnHp5"]
["30.09.2021 04:30","BRAZIL: Serie B","CSA","Ponte Preta",0.70614035087719285,0.2938596491228071,"1Х","ТМ3,5",null,null,null,null,null,null,null,null,null,null,null,null,null,null,null,null,null,null,null,null,null,null,null,null,null,null,null,null,null,null,null,null,null,null,null,null,null,null,null,null,null,null,null,null,null,"EylU9Tg6"]
["30.09.2021 04:30","BRAZIL: Serie B","Vitoria","Botafogo RJ",0.3611111111111111,0.63888888888888884,"Х2","ТМ3,5",null,null,null,null,null,null,null,null,null,null,null,null,null,null,null,null,null,null,null,null,null,null,null,null,null,null,null,null,null,null,null,null,null,null,null,null,null,null,null,null,null,null,null,null,null,"0hjt7RwP"]
["30.09.2021 04:30","URUGUAY: Segunda Division","Defensor Sp.","Albion",0.51666666666666661,0.48333333333333334,"Ф2(0)","",null,null,null,null,null,null,null,null,null,null,null,null,null,null,null,null,null,null,null,null,null,null,null,null,null,null,null,null,null,null,null,null,null,null,null,null,null,null,null,null,null,null,null,null,null,"UiGXyWfd"]
["30.09.2021 04:30","USA: MLS","Nashville SC","Orlando City",0.61806914546640579,0.38193085453359427,"Ф1(0)","",null,null,null,null,null,null,null,null,null,null,null,null,null,null,null,null,null,null,null,null,null,null,null,null,null,null,null,null,null,null,null,null,null,null,null,null,null,null,null,null,null,null,null,null,null,"Cf2zvnMA"]
["30.09.2021 04:30","USA: USL Championship","Oklahoma City Energy","Indy Eleven",0.5,0.5,"1Х","ТБ1,5",null,null,null,null,null,null,null,null,null,null,null,null,null,null,null,null,null,null,null,null,null,null,null,null,null,null,null,null,null,null,null,null,null,null,null,null,null,null,null,null,null,null,null,null,null,"UkJ777Vi"]
["30.09.2021 05:00","USA: MLS","Colorado Rapids","Austin FC",0.71266233766233766,0.28733766233766234,"Ф1(0)","ТБ1,5",null,null,null,null,null,null,null,null,null,null,null,null,null,null,null,null,null,null,null,null,null,null,null,null,null,null,null,null,null,null,null,null,null,null,null,null,null,null,null,null,null,null,null,null,null,"jo1vw6yH"]
["30.09.2021 05:00","USA: MLS","Houston Dynamo","Vancouver Whitecaps",0.59424336158759483,0.40575663841240511,"1Х","ТБ1,5",null,null,null,null,null,null,null,null,null,null,null,null,null,null,null,null,null,null,null,null,null,null,null,null,null,null,null,null,null,null,null,null,null,null,null,null,null,null,null,null,null,null,null,null,null,"MR0Mk4xK"]
["30.09.2021 05:00","USA: USL Championship","El Paso","Real Monarchs",0.84671949940047964,0.15328050059952036,"Ф1(0)","ТБ1,5",null,null,null,null,null,null,null,null,null,null,null,null,null,null,null,null,null,null,null,null,null,null,null,null,null,null,null,null,null,null,null,null,null,null,null,null,null,null,null,null,null,null,null,null,null,"fJNSd0A3"]
["30.09.2021 05:00","USA: USL Championship","New Mexico","Rio Grande",0.59795918367346945,0.4020408163265306,"Ф1(0)","ТБ1,5",null,null,null,null,null,null,null,null,null,null,null,null,null,null,null,null,null,null,null,null,null,null,null,null,null,null,null,null,null,null,null,null,null,null,null,null,null,null,null,null,null,null,null,null,null,"8QsAneVb"]
["30.09.2021 05:30","USA: MLS","Real Salt Lake","Los Angeles Galaxy",0.55627705627705626,0.44372294372294374,"Ф1(0)","ТБ1,5",null,null,null,null,null,null,null,null,null,null,null,null,null,null,null,null,null,null,null,null,null,null,null,null,null,null,null,null,null,null,null,null,null,null,null,null,null,null,null,null,null,null,null,null,null,"WdIyxQjN"]
["30.09.2021 06:00","CANADA: Canadian Premier League","Edmonton","Cavalry",0.34350132625994689,0.65649867374005311,"Х2","",null,null,null,null,null,null,null,null,null,null,null,null,null,null,null,null,null,null,null,null,null,null,null,null,null,null,null,null,null,null,null,null,null,null,null,null,null,null,null,null,null,null,null,null,null,"d0Tt1Xk1"]
["30.09.2021 06:00","MONGOLIA: Premier League","Athletic 220","Mazaalainuud",0.99999500003611086,4.9999638891407017E-6,"Ф1(0)","ТБ1,5",null,null,null,null,null,null,null,null,null,null,null,null,null,null,null,null,null,null,null,null,null,null,null,null,null,null,null,null,null,null,null,null,null,null,null,null,null,null,null,null,null,null,null,null,null,"tzfOTb8K"]
["30.09.2021 06:05","MEXICO: Liga de Expansion MX - Apertura","Zacatecas Mineros","Dorados de Sinaloa",0.4538461538461539,0.5461538461538461,"Ф2(0)","",null,null,null,null,null,null,null,null,null,null,null,null,null,null,null,null,null,null,null,null,null,null,null,null,null,null,null,null,null,null,null,null,null,null,null,null,null,null,null,null,null,null,null,null,null,"8rH0oy0B"]
["30.09.2021 06:15","MEXICO: Liga MX - Apertura","Queretaro","Guadalajara Chivas",0.41291291291291288,0.58708708708708712,"Х2","ТМ3,5",null,null,null,null,null,null,null,null,null,null,null,null,null,null,null,null,null,null,null,null,null,null,null,null,null,null,null,null,null,null,null,null,null,null,null,null,null,null,null,null,null,null,null,null,null,"nV7unBhb"]
["30.09.2021 06:30","USA: MLS","Los Angeles FC","Portland Timbers",0.51428571428571423,0.48571428571428571,"1Х","ТБ1,5",null,null,null,null,null,null,null,null,null,null,null,null,null,null,null,null,null,null,null,null,null,null,null,null,null,null,null,null,null,null,null,null,null,null,null,null,null,null,null,null,null,null,null,null,null,"AmHuyp6T"]
["30.09.2021 06:30","USA: MLS","San Jose Earthquakes","Seattle Sounders",0.33519970138111238,0.66480029861888756,"Ф2(0)","ТБ1,5",null,null,null,null,null,null,null,null,null,null,null,null,null,null,null,null,null,null,null,null,null,null,null,null,null,null,null,null,null,null,null,null,null,null,null,null,null,null,null,null,null,null,null,null,null,"SS37W3Ep"]
["30.09.2021 06:30","USA: USL Championship","LA Galaxy 2","Phoenix Rising",0.27558479532163738,0.72441520467836251,"Х2","ТБ1,5",null,null,null,null,null,null,null,null,null,null,null,null,null,null,null,null,null,null,null,null,null,null,null,null,null,null,null,null,null,null,null,null,null,null,null,null,null,null,null,null,null,null,null,null,null,"Y9MWeKP9"]
["30.09.2021 09:00","MONGOLIA: Premier League","BCH Lions","Khoromkhon",0.45959595959595956,0.54040404040404044,"1Х","ТБ1,5",null,null,null,null,null,null,null,null,null,null,null,null,null,null,null,null,null,null,null,null,null,null,null,null,null,null,null,null,null,null,null,null,null,null,null,null,null,null,null,null,null,null,null,null,null,"ObqTSINQ"]
["30.09.2021 10:00","RUSSIA: FNL 2 - Group 3","Dynamo Vladivostok","F. Voronezh 2",0.99999250657983663,7.4934201633736208E-6,"Ф1(0)","",null,null,null,null,null,null,null,null,null,null,null,null,null,null,null,null,null,null,null,null,null,null,null,null,null,null,null,null,null,null,null,null,null,null,null,null,null,null,null,null,null,null,null,null,null,"61JMH3BH"]
["30.09.2021 11:30","CHINA: Jia League","Shaanxi Changan","Chengdu Rongcheng",0.45370370370370372,0.54629629629629628,"Ф2(0)","",null,null,null,null,null,null,null,null,null,null,null,null,null,null,null,null,null,null,null,null,null,null,null,null,null,null,null,null,null,null,null,null,null,null,null,null,null,null,null,null,null,null,null,null,null,"GfB227wU"]
["30.09.2021 11:30","RUSSIA: FNL 2 - Group 2","Chita","Leningradets",2.9165659760704473E-5,0.99997083434023937,"Х2","",null,null,null,null,null,null,null,null,null,null,null,null,null,null,null,null,null,null,null,null,null,null,null,null,null,null,null,null,null,null,null,null,null,null,null,null,null,null,null,null,null,null,null,null,null,"A5lwgydi"]
["30.09.2021 12:00","MONGOLIA: Premier League","Khaan Khuns-Erchim","Falcons",0.40230713770728188,0.59769286229271812,"Ф2(0)","ТБ1,5",null,null,null,null,null,null,null,null,null,null,null,null,null,null,null,null,null,null,null,null,null,null,null,null,null,null,null,null,null,null,null,null,null,null,null,null,null,null,null,null,null,null,null,null,null,"0KzeOxWs"]
["30.09.2021 12:30","CAMBODIA: C-League - Championship Group","Boeung Ket","Svay Rieng",0.45,0.55000000000000004,"Ф2(0)","ТБ1,5",null,null,null,null,null,null,null,null,null,null,null,null,null,null,null,null,null,null,null,null,null,null,null,null,null,null,null,null,null,null,null,null,null,null,null,null,null,null,null,null,null,null,null,null,null,"bkFRh21C"]
["30.09.2021 12:30","CAMBODIA: C-League - Championship Group","NagaWorld","Phnom Penh Crown",0.33760683760683757,0.66239316239316248,"Ф2(0)","ТБ1,5",null,null,null,null,null,null,null,null,null,null,null,null,null,null,null,null,null,null,null,null,null,null,null,null,null,null,null,null,null,null,null,null,null,null,null,null,null,null,null,null,null,null,null,null,null,"v1WOiMGI"]
["30.09.2021 12:30","CAMBODIA: C-League - Relegation Group","Police Commissary","Soltilo Angkor",0.81578447373421004,0.18421552626578996,"1Х","",null,null,null,null,null,null,null,null,null,null,null,null,null,null,null,null,null,null,null,null,null,null,null,null,null,null,null,null,null,null,null,null,null,null,null,null,null,null,null,null,null,null,null,null,null,"GCGbHKes"]
["30.09.2021 12:30","CAMBODIA: C-League - Relegation Group","Prey Veng","Electricite Du Cambodge",0.31022408963585435,0.68977591036414565,"1Х","",null,null,null,null,null,null,null,null,null,null,null,null,null,null,null,null,null,null,null,null,null,null,null,null,null,null,null,null,null,null,null,null,null,null,null,null,null,null,null,null,null,null,null,null,null,"2TIAEIu0"]
["30.09.2021 13:00","RUSSIA: Youth League","Rubin Kazan U19","Krylya Sovetov Samara U19",0.580952380952381,0.41904761904761895,"Ф1(0)","",null,null,null,null,null,null,null,null,null,null,null,null,null,null,null,null,null,null,null,null,null,null,null,null,null,null,null,null,null,null,null,null,null,null,null,null,null,null,null,null,null,null,null,null,null,"tluaCZHS"]
["30.09.2021 13:00","UKRAINE: Youth League","Mariupol U19","Rukh Lviv U19","","","Ф2(0)","ТБ1,5",null,null,null,null,null,null,null,null,null,null,null,null,null,null,null,null,null,null,null,null,null,null,null,null,null,null,null,null,null,null,null,null,null,null,null,null,null,null,null,null,null,null,null,null,null,"W0YUEMd6"]
["30.09.2021 13:30","NORWAY: Junior U19","Aalesund U19","Haugesund U19",0.73863636363636365,0.26136363636363635,"Ф1(0)","ТБ1,5",null,null,null,null,null,null,null,null,null,null,null,null,null,null,null,null,null,null,null,null,null,null,null,null,null,null,null,null,null,null,null,null,null,null,null,null,null,null,null,null,null,null,null,null,null,"4dNQCRGf"]
["30.09.2021 14:00","BELARUS: Vysshaya Liga Reserve","Din. Minsk 2","Shakhter Soligorsk 2",0.55214268677285139,0.44785731322714861,"Ф1(0)","ТБ1,5",null,null,null,null,null,null,null,null,null,null,null,null,null,null,null,null,null,null,null,null,null,null,null,null,null,null,null,null,null,null,null,null,null,null,null,null,null,null,null,null,null,null,null,null,null,"YLllw39a"]
["30.09.2021 14:00","KYRGYZSTAN: Premier Liga","Abdish-Ata","Alga",0.4384975780195346,0.5615024219804654,"1Х","",null,null,null,null,null,null,null,null,null,null,null,null,null,null,null,null,null,null,null,null,null,null,null,null,null,null,null,null,null,null,null,null,null,null,null,null,null,null,null,null,null,null,null,null,null,"nkrDnMRg"]
["30.09.2021 14:00","KYRGYZSTAN: Premier Liga","Alay Osh","Dordoi Bishkek",0.41817073170731711,0.58182926829268289,"Ф2(0)","ТБ1,5",null,null,null,null,null,null,null,null,null,null,null,null,null,null,null,null,null,null,null,null,null,null,null,null,null,null,null,null,null,null,null,null,null,null,null,null,null,null,null,null,null,null,null,null,null,"QusHots0"]
["30.09.2021 14:00","KYRGYZSTAN: Premier Liga","Neftchi Kochkor-Ata","Ilbirs",0.72346399471482048,0.27653600528517946,"1Х","",null,null,null,null,null,null,null,null,null,null,null,null,null,null,null,null,null,null,null,null,null,null,null,null,null,null,null,null,null,null,null,null,null,null,null,null,null,null,null,null,null,null,null,null,null,"hET9m2Cm"]
["30.09.2021 14:00","RUSSIA: FNL 2 - Group 3","Khimki 2","Kolomna",0.85714119048174586,0.14285880951825408,"1Х","ТБ1,5",null,null,null,null,null,null,null,null,null,null,null,null,null,null,null,null,null,null,null,null,null,null,null,null,null,null,null,null,null,null,null,null,null,null,null,null,null,null,null,null,null,null,null,null,null,"Q9j3NDtm"]
["30.09.2021 14:00","RUSSIA: FNL 2 - Group 4","Lada Togliatti","Dynamo Barnaul",0.24383301707779886,0.75616698292220108,"Х2","ТБ1,5",null,null,null,null,null,null,null,null,null,null,null,null,null,null,null,null,null,null,null,null,null,null,null,null,null,null,null,null,null,null,null,null,null,null,null,null,null,null,null,null,null,null,null,null,null,"Qmwn3opB"]
["30.09.2021 15:00","ARMENIA: First League","Lernayin Artsakh","Pyunik Yerevan 2",0.67424242424242431,0.32575757575757575,"Ф1(0)","ТБ1,5",null,null,null,null,null,null,null,null,null,null,null,null,null,null,null,null,null,null,null,null,null,null,null,null,null,null,null,null,null,null,null,null,null,null,null,null,null,null,null,null,null,null,null,null,null,"C8gYIdVk"]
["30.09.2021 15:00","BELARUS: Vysshaya Liga Reserve","Neman 2","Rukh Brest 2",0.49880952380952381,0.50119047619047619,"Ф1(0)","ТБ1,5",null,null,null,null,null,null,null,null,null,null,null,null,null,null,null,null,null,null,null,null,null,null,null,null,null,null,null,null,null,null,null,null,null,null,null,null,null,null,null,null,null,null,null,null,null,"SrlhxNO5"]
["30.09.2021 15:00","MONGOLIA: Premier League","Khangarid","Deren",0.36038961038961037,0.63961038961038963,"Ф2(0)","",null,null,null,null,null,null,null,null,null,null,null,null,null,null,null,null,null,null,null,null,null,null,null,null,null,null,null,null,null,null,null,null,null,null,null,null,null,null,null,null,null,null,null,null,null,"fszaNdol"]
["30.09.2021 15:00","RUSSIA: FNL 2 - Group 2","Zvezda St. Peterburg","Zenit 2",0.74999750001249998,0.25000249998750002,"1Х","ТБ1,5",null,null,null,null,null,null,null,null,null,null,null,null,null,null,null,null,null,null,null,null,null,null,null,null,null,null,null,null,null,null,null,null,null,null,null,null,null,null,null,null,null,null,null,null,null,"pOKKzftN"]
["30.09.2021 15:00","RUSSIA: FNL 2 - Group 3","Kaluga","Kursk",0.3,0.7,"Х2","",null,null,null,null,null,null,null,null,null,null,null,null,null,null,null,null,null,null,null,null,null,null,null,null,null,null,null,null,null,null,null,null,null,null,null,null,null,null,null,null,null,null,null,null,null,"Gz9dB1lo"]
["30.09.2021 15:00","RUSSIA: FNL 2 - Group 3","Vidnoe","Peresvet Podolsk",0.3606060606060606,0.6393939393939394,"Х2","ТБ1,5",null,null,null,null,null,null,null,null,null,null,null,null,null,null,null,null,null,null,null,null,null,null,null,null,null,null,null,null,null,null,null,null,null,null,null,null,null,null,null,null,null,null,null,null,null,"fRH5eqzt"]
["30.09.2021 15:00","RUSSIA: FNL 2 - Group 4","Chelyabinsk","Ural 2",0.64102564102564097,0.35897435897435898,"Ф1(0)","ТБ1,5",null,null,null,null,null,null,null,null,null,null,null,null,null,null,null,null,null,null,null,null,null,null,null,null,null,null,null,null,null,null,null,null,null,null,null,null,null,null,null,null,null,null,null,null,null,"YDtf1PEN"]
["30.09.2021 15:00","RUSSIA: FNL 2 - Group 4","Orenburg 2","FK Novosibirsk",0.24704956726986624,0.75295043273013373,"Ф2(0)","",null,null,null,null,null,null,null,null,null,null,null,null,null,null,null,null,null,null,null,null,null,null,null,null,null,null,null,null,null,null,null,null,null,null,null,null,null,null,null,null,null,null,null,null,null,"fNsj25aH"]
["30.09.2021 15:00","RUSSIA: FNL 2 - Group 4","Tuymazy","Amkar",0.34398034398034394,0.65601965601965606,"Ф2(0)","ТБ1,5",null,null,null,null,null,null,null,null,null,null,null,null,null,null,null,null,null,null,null,null,null,null,null,null,null,null,null,null,null,null,null,null,null,null,null,null,null,null,null,null,null,null,null,null,null,"61B8KnFo"]
["30.09.2021 15:00","RUSSIA: FNL 2 - Group 4","Zenit-Izhevsk","Miass",8.499155092639321E-5,0.99991500844907355,"Х2","",null,null,null,null,null,null,null,null,null,null,null,null,null,null,null,null,null,null,null,null,null,null,null,null,null,null,null,null,null,null,null,null,null,null,null,null,null,null,null,null,null,null,null,null,null,"hbNQe3xo"]
["30.09.2021 15:35","CHINA: Jia League","Guizhou","Zibo Cuju",0.69047619047619047,0.30952380952380953,"1Х","",null,null,null,null,null,null,null,null,null,null,null,null,null,null,null,null,null,null,null,null,null,null,null,null,null,null,null,null,null,null,null,null,null,null,null,null,null,null,null,null,null,null,null,null,null,"IgfGLUwh"]
["30.09.2021 15:35","CHINA: Jia League","Shenyang Urban FC","Nanjing City",0.48076923076923073,0.51923076923076927,"Х2","",null,null,null,null,null,null,null,null,null,null,null,null,null,null,null,null,null,null,null,null,null,null,null,null,null,null,null,null,null,null,null,null,null,null,null,null,null,null,null,null,null,null,null,null,null,"xbHTcRoo"]
["30.09.2021 15:35","CHINA: Jia League","Sichuan Jiuniu","Beijing Technology",0.82857142857142851,0.17142857142857149,"1Х","",null,null,null,null,null,null,null,null,null,null,null,null,null,null,null,null,null,null,null,null,null,null,null,null,null,null,null,null,null,null,null,null,null,null,null,null,null,null,null,null,null,null,null,null,null,"v3eCMAOo"]
["30.09.2021 16:00","ARMENIA: First League","BKMA 2","Shirak Gyumri","","","Ф2(0)","ТБ1,5",null,null,null,null,null,null,null,null,null,null,null,null,null,null,null,null,null,null,null,null,null,null,null,null,null,null,null,null,null,null,null,null,null,null,null,null,null,null,null,null,null,null,null,null,null,"vFoKt0Nd"]
["30.09.2021 16:00","RUSSIA: FNL 2 - Group 2","Yenisey 2","Vladimir",0.65942028985507251,0.34057971014492749,"Ф1(0)","",null,null,null,null,null,null,null,null,null,null,null,null,null,null,null,null,null,null,null,null,null,null,null,null,null,null,null,null,null,null,null,null,null,null,null,null,null,null,null,null,null,null,null,null,null,"dpZYreS6"]
["30.09.2021 16:00","RUSSIA: FNL 2 - Group 3","Kvant","FK Strogino Moscow",0.43292144748455424,0.56707855251544581,"Ф1(0)","ТБ1,5",null,null,null,null,null,null,null,null,null,null,null,null,null,null,null,null,null,null,null,null,null,null,null,null,null,null,null,null,null,null,null,null,null,null,null,null,null,null,null,null,null,null,null,null,null,"6VxdytkO"]
["30.09.2021 16:00","RUSSIA: FNL 2 - Group 3","Penza","Salyut-Belgorod",0.37222222222222223,0.62777777777777777,"Ф2(0)","",null,null,null,null,null,null,null,null,null,null,null,null,null,null,null,null,null,null,null,null,null,null,null,null,null,null,null,null,null,null,null,null,null,null,null,null,null,null,null,null,null,null,null,null,null,"IumuzoRo"]
["30.09.2021 16:10","NORWAY: Junior U19","Lillestrom U19","Brann U19",0.63541666666666663,0.36458333333333337,"1Х","ТБ1,5",null,null,null,null,null,null,null,null,null,null,null,null,null,null,null,null,null,null,null,null,null,null,null,null,null,null,null,null,null,null,null,null,null,null,null,null,null,null,null,null,null,null,null,null,null,"CtgKM2pJ"]
["30.09.2021 16:30","ITALY: Serie C - Group C","Catania","Turris",0.38095238095238093,0.61904761904761907,"Ф2(0)","",null,null,null,null,null,null,null,null,null,null,null,null,null,null,null,null,null,null,null,null,null,null,null,null,null,null,null,null,null,null,null,null,null,null,null,null,null,null,null,null,null,null,null,null,null,"KSRdiuH3"]
["30.09.2021 16:30","MALAWI: Super League","Mighty Wanderers","Ekwendeni Hammers",0.59166666666666667,0.40833333333333333,"Ф1(0)","ТМ3,5",null,null,null,null,null,null,null,null,null,null,null,null,null,null,null,null,null,null,null,null,null,null,null,null,null,null,null,null,null,null,null,null,null,null,null,null,null,null,null,null,null,null,null,null,null,"CjYqsnFs"]
["30.09.2021 16:30","MALAWI: Super League","TN Stars","Red Lions",0.60880055263772759,0.39119944736227236,"Х2","",null,null,null,null,null,null,null,null,null,null,null,null,null,null,null,null,null,null,null,null,null,null,null,null,null,null,null,null,null,null,null,null,null,null,null,null,null,null,null,null,null,null,null,null,null,"zRMPbBtp"]
["30.09.2021 17:00","KOSOVO: Superliga","Dukagjini","Drita","","","Ф2(0)","",null,null,null,null,null,null,null,null,null,null,null,null,null,null,null,null,null,null,null,null,null,null,null,null,null,null,null,null,null,null,null,null,null,null,null,null,null,null,null,null,null,null,null,null,null,"bkD4gZSL"]
["30.09.2021 17:00","KOSOVO: Superliga","Prishtina","KF Ulpiana",0.33340832208502058,0.66659167791497942,"1Х","",null,null,null,null,null,null,null,null,null,null,null,null,null,null,null,null,null,null,null,null,null,null,null,null,null,null,null,null,null,null,null,null,null,null,null,null,null,null,null,null,null,null,null,null,null,"4SD0fFDF"]
["30.09.2021 17:00","RUSSIA: FNL 2 - Group 2","Chertanovo M.","Olimp-Dolgoprudny 2",0.39393939393939392,0.60606060606060608,"Х2","",null,null,null,null,null,null,null,null,null,null,null,null,null,null,null,null,null,null,null,null,null,null,null,null,null,null,null,null,null,null,null,null,null,null,null,null,null,null,null,null,null,null,null,null,null,"IgzVqyD0"]
["30.09.2021 17:00","RUSSIA: FNL 2 - Group 2","Dynamo Petersburg","Luki-Energiya",0.63479623824451414,0.36520376175548586,"Ф1(0)","",null,null,null,null,null,null,null,null,null,null,null,null,null,null,null,null,null,null,null,null,null,null,null,null,null,null,null,null,null,null,null,null,null,null,null,null,null,null,null,null,null,null,null,null,null,"bROOZDeT"]
["30.09.2021 17:00","RUSSIA: FNL 2 - Group 2","Kairat Moscow","Baltika 2",0.90816215419748048,9.183784580251958E-2,"1Х","ТБ1,5",null,null,null,null,null,null,null,null,null,null,null,null,null,null,null,null,null,null,null,null,null,null,null,null,null,null,null,null,null,null,null,null,null,null,null,null,null,null,null,null,null,null,null,null,null,"481iVX3p"]
["30.09.2021 17:00","RUSSIA: FNL 2 - Group 3","Ryazan","Arsenal Tula 2",0.3858695652173913,0.61413043478260865,"Х2","",null,null,null,null,null,null,null,null,null,null,null,null,null,null,null,null,null,null,null,null,null,null,null,null,null,null,null,null,null,null,null,null,null,null,null,null,null,null,null,null,null,null,null,null,null,"phIQGNQN"]
["30.09.2021 17:30","RUSSIA: FNL 2 - Group 4","Zvezda Perm","Tyumen",0.36428571428571427,0.63571428571428568,"Ф2(0)","",null,null,null,null,null,null,null,null,null,null,null,null,null,null,null,null,null,null,null,null,null,null,null,null,null,null,null,null,null,null,null,null,null,null,null,null,null,null,null,null,null,null,null,null,null,"GxWb0qUT"]
["30.09.2021 18:00","ROMANIA: Liga 2","Concordia","Unirea Dej",0.6333333333333333,0.36666666666666664,"Ф1(0)","ТМ3,5",null,null,null,null,null,null,null,null,null,null,null,null,null,null,null,null,null,null,null,null,null,null,null,null,null,null,null,null,null,null,null,null,null,null,null,null,null,null,null,null,null,null,null,null,null,"4GHtaQXH"]
["30.09.2021 18:00","RUSSIA: FNL 2 - Group 2","Volna Nizhegorodskaya","Murom",0.90983356558627038,9.0166434413729568E-2,"1Х","",null,null,null,null,null,null,null,null,null,null,null,null,null,null,null,null,null,null,null,null,null,null,null,null,null,null,null,null,null,null,null,null,null,null,null,null,null,null,null,null,null,null,null,null,null,"6FGP5IZJ"]
["30.09.2021 18:00","RUSSIA: FNL 2 - Group 4","Ulyanovsk","Omsk",0.69230769230769229,0.30769230769230776,"Ф1(0)","",null,null,null,null,null,null,null,null,null,null,null,null,null,null,null,null,null,null,null,null,null,null,null,null,null,null,null,null,null,null,null,null,null,null,null,null,null,null,null,null,null,null,null,null,null,"ncvr4RU4"]
["30.09.2021 18:30","ARMENIA: First League","Urartu 2","Ararat-Armenia 2",0.12502499875006251,0.87497500124993755,"Х2","ТБ1,5",null,null,null,null,null,null,null,null,null,null,null,null,null,null,null,null,null,null,null,null,null,null,null,null,null,null,null,null,null,null,null,null,null,null,null,null,null,null,null,null,null,null,null,null,null,"Uq4TJxGq"]
["30.09.2021 18:30","SERBIA: Super Liga","Radnicki Nis","Metalac",0.73683960527565784,0.26316039472434216,"1Х","",null,null,null,null,null,null,null,null,null,null,null,null,null,null,null,null,null,null,null,null,null,null,null,null,null,null,null,null,null,null,null,null,null,null,null,null,null,null,null,null,null,null,null,null,null,"xlAy6qRM"]
["30.09.2021 19:00","JORDAN: Premier League","Al Salt","Sahab",0.63186813186813184,0.36813186813186816,"Ф1(0)","",null,null,null,null,null,null,null,null,null,null,null,null,null,null,null,null,null,null,null,null,null,null,null,null,null,null,null,null,null,null,null,null,null,null,null,null,null,null,null,null,null,null,null,null,null,"GxE6qfFF"]
["30.09.2021 19:00","LITHUANIA: I Lyga","Siauliai FA","FK Panevezys 2",0.61777236762020693,0.38222763237979307,"Ф1(0)","ТБ1,5",null,null,null,null,null,null,null,null,null,null,null,null,null,null,null,null,null,null,null,null,null,null,null,null,null,null,null,null,null,null,null,null,null,null,null,null,null,null,null,null,null,null,null,null,null,"pdKNCLa1"]
["30.09.2021 19:00","NORWAY: Division 2 - Group 1","Valerenga 2","Tromsdalen",0.55000000000000004,0.45,"1Х","ТБ1,5",null,null,null,null,null,null,null,null,null,null,null,null,null,null,null,null,null,null,null,null,null,null,null,null,null,null,null,null,null,null,null,null,null,null,null,null,null,null,null,null,null,null,null,null,null,"pvipGOEO"]
["30.09.2021 19:00","NORWAY: Division 2 - Group 2","Kjelsas","Nardo",0.77777666666913581,0.22222333333086419,"Ф1(0)","ТБ1,5",null,null,null,null,null,null,null,null,null,null,null,null,null,null,null,null,null,null,null,null,null,null,null,null,null,null,null,null,null,null,null,null,null,null,null,null,null,null,null,null,null,null,null,null,null,"vThnpGic"]
["30.09.2021 19:00","RUSSIA: FNL 2 - Group 2","Shinnik Yaroslavl","Lokomotiv-Kazanka",0.66964285714285721,0.33035714285714285,"Ф1(0)","",null,null,null,null,null,null,null,null,null,null,null,null,null,null,null,null,null,null,null,null,null,null,null,null,null,null,null,null,null,null,null,null,null,null,null,null,null,null,null,null,null,null,null,null,null,"v9OwrFsD"]
["30.09.2021 19:00","RUSSIA: FNL 2 - Group 2","Znamya Truda","Dynamo Moscow 2",0.4375,0.5625,"Х2","",null,null,null,null,null,null,null,null,null,null,null,null,null,null,null,null,null,null,null,null,null,null,null,null,null,null,null,null,null,null,null,null,null,null,null,null,null,null,null,null,null,null,null,null,null,"hCSssZdJ"]
["30.09.2021 19:00","RUSSIA: FNL 2 - Group 3","D. Bryansk","Saratov",0.44999999999999996,0.55000000000000004,"Ф1(0)","",null,null,null,null,null,null,null,null,null,null,null,null,null,null,null,null,null,null,null,null,null,null,null,null,null,null,null,null,null,null,null,null,null,null,null,null,null,null,null,null,null,null,null,null,null,"ERMUFstU"]
["30.09.2021 19:00","RUSSIA: FNL 2 - Group 3","FK Saransk","SKA Khabarovsk 2",0.72202797202797209,0.27797202797202797,"1Х","ТБ1,5",null,null,null,null,null,null,null,null,null,null,null,null,null,null,null,null,null,null,null,null,null,null,null,null,null,null,null,null,null,null,null,null,null,null,null,null,null,null,null,null,null,null,null,null,null,"O6mixMZH"]
["30.09.2021 19:30","FINLAND: Veikkausliiga","Haka","HIFK",0.34285714285714286,0.65714285714285703,"Ф2(0)","",null,null,null,null,null,null,null,null,null,null,null,null,null,null,null,null,null,null,null,null,null,null,null,null,null,null,null,null,null,null,null,null,null,null,null,null,null,null,null,null,null,null,null,null,null,"SGa3ZK99"]
["30.09.2021 19:30","SAUDI ARABIA: Saudi Professional League","Al-Raed","Damac",0.58333333333333326,0.41666666666666669,"Ф1(0)","",null,null,null,null,null,null,null,null,null,null,null,null,null,null,null,null,null,null,null,null,null,null,null,null,null,null,null,null,null,null,null,null,null,null,null,null,null,null,null,null,null,null,null,null,null,"StNL8DdT"]
["30.09.2021 19:35","SAUDI ARABIA: Saudi Professional League","Abha","Al-Nassr",0.60868065262389959,0.39131934737610041,"Х2","ТБ1,5",null,null,null,null,null,null,null,null,null,null,null,null,null,null,null,null,null,null,null,null,null,null,null,null,null,null,null,null,null,null,null,null,null,null,null,null,null,null,null,null,null,null,null,null,null,"MqtqQER3"]
["30.09.2021 20:00","NORWAY: Junior U19","Sandefjord U19","Start U19",0.47222222222222221,0.52777777777777779,"Ф1(0)","ТБ1,5",null,null,null,null,null,null,null,null,null,null,null,null,null,null,null,null,null,null,null,null,null,null,null,null,null,null,null,null,null,null,null,null,null,null,null,null,null,null,null,null,null,null,null,null,null,"thibiZ67"]
["30.09.2021 20:00","PERU: Liga 2 - Clausura","Carlos Stein","Santos",0.66483516483516492,0.33516483516483514,"1Х","",null,null,null,null,null,null,null,null,null,null,null,null,null,null,null,null,null,null,null,null,null,null,null,null,null,null,null,null,null,null,null,null,null,null,null,null,null,null,null,null,null,null,null,null,null,"4hDNdN5J"]
["30.09.2021 20:00","PERU: Liga 2 - Clausura","Los Chankas","Llacuabamba",0.47222222222222221,0.52777777777777779,"1Х","",null,null,null,null,null,null,null,null,null,null,null,null,null,null,null,null,null,null,null,null,null,null,null,null,null,null,null,null,null,null,null,null,null,null,null,null,null,null,null,null,null,null,null,null,null,"rqCResLP"]
["30.09.2021 20:00","RUSSIA: FNL 2 - Group 3","Saturn Ramenskoye","Rodina Moscow",0.42657342657342656,0.57342657342657344,"Ф2(0)","ТБ1,5",null,null,null,null,null,null,null,null,null,null,null,null,null,null,null,null,null,null,null,null,null,null,null,null,null,null,null,null,null,null,null,null,null,null,null,null,null,null,null,null,null,null,null,null,null,"I5t0z04U"]
["30.09.2021 21:00","SWEDEN: Superettan","AFC Eskilstuna","Osters",0.57893626002532717,0.42106373997467289,"Ф1(0)","",null,null,null,null,null,null,null,null,null,null,null,null,null,null,null,null,null,null,null,null,null,null,null,null,null,null,null,null,null,null,null,null,null,null,null,null,null,null,null,null,null,null,null,null,null,"WEXgRxAB"]
["30.09.2021 21:00","SWEDEN: Superettan","Brage","Vasalunds",0.53859348198970836,0.46140651801029159,"1Х","",null,null,null,null,null,null,null,null,null,null,null,null,null,null,null,null,null,null,null,null,null,null,null,null,null,null,null,null,null,null,null,null,null,null,null,null,null,null,null,null,null,null,null,null,null,"MqdCqKPu"]
["30.09.2021 21:00","SWEDEN: Superettan","Varnamo","Vasteras SK",0.75326797385620914,0.24673202614379081,"Ф1(0)","",null,null,null,null,null,null,null,null,null,null,null,null,null,null,null,null,null,null,null,null,null,null,null,null,null,null,null,null,null,null,null,null,null,null,null,null,null,null,null,null,null,null,null,null,null,"80bOtI9b"]
["30.09.2021 21:00","SWEDEN: Division 2 - Norrland","Storfors AIK","Bodens",0.41577060931899645,0.58422939068100366,"Х2","",null,null,null,null,null,null,null,null,null,null,null,null,null,null,null,null,null,null,null,null,null,null,null,null,null,null,null,null,null,null,null,null,null,null,null,null,null,null,null,null,null,null,null,null,null,"2sS5TVXN"]
["30.09.2021 21:00","SWEDEN: Division 2 - Västra Götaland","Varbergs GIF","Ullareds IK",0.66666666666666663,0.33333333333333337,"Х2","ТБ1,5",null,null,null,null,null,null,null,null,null,null,null,null,null,null,null,null,null,null,null,null,null,null,null,null,null,null,null,null,null,null,null,null,null,null,null,null,null,null,null,null,null,null,null,null,null,"tSqpF8AT"]
["30.09.2021 21:20","SAUDI ARABIA: Saudi Professional League","Al-Ettifaq","Al-Fateh",0.46666666666666667,0.53333333333333333,"Ф1(0)","",null,null,null,null,null,null,null,null,null,null,null,null,null,null,null,null,null,null,null,null,null,null,null,null,null,null,null,null,null,null,null,null,null,null,null,null,null,null,null,null,null,null,null,null,null,"YNal4X4p"]
["30.09.2021 21:20","SAUDI ARABIA: Saudi Professional League","Al-Hazem","Al-Hilal",0.37857142857142856,0.62142857142857144,"Х2","",null,null,null,null,null,null,null,null,null,null,null,null,null,null,null,null,null,null,null,null,null,null,null,null,null,null,null,null,null,null,null,null,null,null,null,null,null,null,null,null,null,null,null,null,null,"zmpmPYtA"]
["30.09.2021 21:30","JORDAN: Premier League","Al Jalil","Al Buqaa",0.99997000129993707,2.9998700062983108E-5,"1Х","",null,null,null,null,null,null,null,null,null,null,null,null,null,null,null,null,null,null,null,null,null,null,null,null,null,null,null,null,null,null,null,null,null,null,null,null,null,null,null,null,null,null,null,null,null,"8YyzSRqr"]
["30.09.2021 21:30","JORDAN: Premier League","Aqaba","Maan",0.58333333333333326,0.41666666666666669,"1Х","",null,null,null,null,null,null,null,null,null,null,null,null,null,null,null,null,null,null,null,null,null,null,null,null,null,null,null,null,null,null,null,null,null,null,null,null,null,null,null,null,null,null,null,null,null,"nPzvRoal"]
["30.09.2021 22:00","PERU: Liga 2 - Clausura","Deportivo Coopsol","Pirata",0.25003124804699706,0.74996875195300294,"Х2","",null,null,null,null,null,null,null,null,null,null,null,null,null,null,null,null,null,null,null,null,null,null,null,null,null,null,null,null,null,null,null,null,null,null,null,null,null,null,null,null,null,null,null,null,null,"YNVoi1Tt"]
["30.09.2021 23:00","CHILE: Primera Division","Curico Unido","Cobresal",0.45384615384615384,0.54615384615384621,"1Х","",null,null,null,null,null,null,null,null,null,null,null,null,null,null,null,null,null,null,null,null,null,null,null,null,null,null,null,null,null,null,null,null,null,null,null,null,null,null,null,null,null,null,null,null,null,"YslZS7n3"]
["30.09.2021 23:00","ITALY: Serie C - Group C","Avellino","Catanzaro",0.74999250011249829,0.25000749988750165,"1Х","ТМ3,5",null,null,null,null,null,null,null,null,null,null,null,null,null,null,null,null,null,null,null,null,null,null,null,null,null,null,null,null,null,null,null,null,null,null,null,null,null,null,null,null,null,null,null,null,null,"QiDghL1c"]

{"sheet":"DataPort","index":2,"n_rows":48,"n_cols":64,"rows_kept":48,"cut":false,"hidden":true,"merged":[]}
["General",null,"Matches","W","D","L","For","Aga","Pts",{"$f":"LOOKUP(2,1/(ПРОГНОЗ!B:B<>\"\"),ROW(ПРОГНОЗ!B:B))+1","v":147},"Home",null,"Matches","W","D","L","For","Aga","Pts",null,"Away",null,"Matches","W","D","L","For","Aga","Pts",null,"General",null,null,"Matches","Over","Under","Goals For","Goals Aga",null,"Home",null,"Matches","Over","Under","Goals For","Goals Aga",null,"Away",null,"Matches","Over","Under","Goals For","Goals Aga",null,14,"Form","Matches","W","D","L","For","Aga","Pts"]
[1,"Titanes",14,7,5,2,23,11,26,null,1,"Titanes",7,5,2,0,15,4,17,null,1,{"$f":"IF(L2=\"\",\"\",L2)","v":"Titanes"},{"$f":"IFERROR(VLOOKUP(V2,$B$2:$I$35,2,FALSE)-M2,\"\")","v":7},{"$f":"IFERROR(VLOOKUP(V2,$B$2:$I$35,3,FALSE)-N2,\"\")","v":2},{"$f":"IFERROR(VLOOKUP(V2,$B$2:$I$35,4,FALSE)-O2,\"\")","v":3},{"$f":"IFERROR(VLOOKUP(V2,$B$2:$I$35,5,FALSE)-P2,\"\")","v":2},{"$f":"IFERROR(VLOOKUP(V2,$B$2:$I$35,6,FALSE)-Q2,\"\")","v":8},{"$f":"IFERROR(VLOOKUP(V2,$B$2:$I$35,7,FALSE)-R2,\"\")","v":7},{"$f":"IFERROR(VLOOKUP(V2,$B$2:$I$35,8,FALSE)-S2,\"\")","v":9},null,2.5,1,"Llaneros",14,10,4,11,42,2.5,1,"Llaneros",7,5,2,8,20,null,null,{"$f":"IF(AO2=\"\",\"\",AO2)","v":"Llaneros"},{"$f":"IFERROR(VLOOKUP(AW2,$AG$2:$AL$35,2,FALSE)-AP2,\"\")","v":7},{"$f":"IFERROR(VLOOKUP(AW2,$AG$2:$AL$35,3,FALSE)-AQ2,\"\")","v":5},{"$f":"IFERROR(VLOOKUP(AW2,$AG$2:$AL$35,4,FALSE)-AR2,\"\")","v":2},{"$f":"IFERROR(VLOOKUP(AW2,$AG$2:$AL$35,5,FALSE)-AS2,\"\")","v":3},{"$f":"IFERROR(VLOOKUP(AW2,$AG$2:$AL$35,6,FALSE)-AT2,\"\")","v":22},null,1,"Local Andina",5,3,2,0,6,"2","11"]
[2,"Academia Rey",14,7,4,3,21,10,25,null,2,"El Vigia",7,5,2,0,13,2,17,null,2,{"$f":"IF(L3=\"\",\"\",L3)","v":"El Vigia"},{"$f":"IFERROR(VLOOKUP(V3,$B$2:$I$35,2,FALSE)-M3,\"\")","v":7},{"$f":"IFERROR(VLOOKUP(V3,$B$2:$I$35,3,FALSE)-N3,\"\")","v":1},{"$f":"IFERROR(VLOOKUP(V3,$B$2:$I$35,4,FALSE)-O3,\"\")","v":1},{"$f":"IFERROR(VLOOKUP(V3,$B$2:$I$35,5,FALSE)-P3,\"\")","v":5},{"$f":"IFERROR(VLOOKUP(V3,$B$2:$I$35,6,FALSE)-Q3,\"\")","v":7},{"$f":"IFERROR(VLOOKUP(V3,$B$2:$I$35,7,FALSE)-R3,\"\")","v":13},{"$f":"IFERROR(VLOOKUP(V3,$B$2:$I$35,8,FALSE)-S3,\"\")","v":4},null,2.5,2,"Titanes",14,7,7,23,11,2.5,2,"Titanes",7,4,3,15,4,null,null,{"$f":"IF(AO3=\"\",\"\",AO3)","v":"Titanes"},{"$f":"IFERROR(VLOOKUP(AW3,$AG$2:$AL$35,2,FALSE)-AP3,\"\")","v":7},{"$f":"IFERROR(VLOOKUP(AW3,$AG$2:$AL$35,3,FALSE)-AQ3,\"\")","v":3},{"$f":"IFERROR(VLOOKUP(AW3,$AG$2:$AL$35,4,FALSE)-AR3,\"\")","v":4},{"$f":"IFERROR(VLOOKUP(AW3,$AG$2:$AL$35,5,FALSE)-AS3,\"\")","v":8},{"$f":"IFERROR(VLOOKUP(AW3,$AG$2:$AL$35,6,FALSE)-AT3,\"\")","v":7},null,2,"Yaracuy",5,3,2,0,5,"2","11"]
[3,"Urena",14,6,6,2,20,14,24,null,3,"Academia Rey",7,4,3,0,9,2,15,null,3,"Academia Rey",7,3,1,3,12,8,10,null,2.5,3,"Frontera",14,6,8,20,15,2.5,3,"Urena",7,3,4,11,7,null,null,"Urena",7,2,5,9,7,null,3,"Titanes",5,3,1,1,11,"3","10"]
[4,"Frontera",14,6,6,2,20,15,24,null,4,"Yaracuy",6,4,2,0,7,3,14,null,4,"Yaracuy",8,1,3,4,7,11,6,null,2.5,4,"El Vigia",14,5,9,20,15,2.5,4,"Local Andina",7,3,4,11,6,null,null,"Local Andina",7,0,7,2,4,null,4,"Urena",5,2,3,0,7,"4","9"]
[5,"El Vigia",14,6,3,5,20,15,21,null,5,"Urena",7,4,1,2,11,7,13,null,5,"Urena",7,2,5,0,9,7,11,null,2.5,5,"Urena",14,5,9,20,14,2.5,5,"JBL Zulia",8,3,5,5,11,null,null,"JBL Zulia",6,0,6,1,7,null,5,"El Vigia",5,3,0,2,8,"7","9"]
[6,"Yaracuy",14,5,5,4,14,14,20,null,6,"Local Andina",7,3,2,2,11,6,11,null,6,"Local Andina",7,1,4,2,2,4,7,null,2.5,6,"Academia Rey",14,5,9,21,10,2.5,6,"Yaracuy",6,3,3,7,3,null,null,"Yaracuy",8,2,6,7,11,null,6,"Frontera",5,2,2,1,7,"5","8"]
[7,"Local Andina",14,4,6,4,13,10,18,null,7,"Rayo Zuliano",7,2,4,1,4,3,10,null,7,"Rayo Zuliano",7,2,2,3,5,5,8,null,2.5,7,"Yaracuy",14,5,9,14,14,2.5,7,"Frontera",7,2,5,7,9,null,null,{"$f":"IF(AO8=\"\",\"\",AO8)","v":"Frontera"},{"$f":"IFERROR(VLOOKUP(AW8,$AG$2:$AL$35,2,FALSE)-AP8,\"\")","v":7},{"$f":"IFERROR(VLOOKUP(AW8,$AG$2:$AL$35,3,FALSE)-AQ8,\"\")","v":4},{"$f":"IFERROR(VLOOKUP(AW8,$AG$2:$AL$35,4,FALSE)-AR8,\"\")","v":3},{"$f":"IFERROR(VLOOKUP(AW8,$AG$2:$AL$35,5,FALSE)-AS8,\"\")","v":13},{"$f":"IFERROR(VLOOKUP(AW8,$AG$2:$AL$35,6,FALSE)-AT8,\"\")","v":6},null,7,"Academia Rey",5,1,2,2,8,"5","5"]
[8,"Rayo Zuliano",14,4,6,4,9,8,18,null,8,"Frontera",7,1,4,2,7,9,7,null,8,{"$f":"IF(L9=\"\",\"\",L9)","v":"Frontera"},{"$f":"IFERROR(VLOOKUP(V9,$B$2:$I$35,2,FALSE)-M9,\"\")","v":7},{"$f":"IFERROR(VLOOKUP(V9,$B$2:$I$35,3,FALSE)-N9,\"\")","v":5},{"$f":"IFERROR(VLOOKUP(V9,$B$2:$I$35,4,FALSE)-O9,\"\")","v":2},{"$f":"IFERROR(VLOOKUP(V9,$B$2:$I$35,5,FALSE)-P9,\"\")","v":0},{"$f":"IFERROR(VLOOKUP(V9,$B$2:$I$35,6,FALSE)-Q9,\"\")","v":13},{"$f":"IFERROR(VLOOKUP(V9,$B$2:$I$35,7,FALSE)-R9,\"\")","v":6},{"$f":"IFERROR(VLOOKUP(V9,$B$2:$I$35,8,FALSE)-S9,\"\")","v":17},null,2.5,8,"JBL Zulia",14,3,11,6,18,2.5,8,"El Vigia",7,1,6,13,2,null,null,"El Vigia",7,4,3,7,13,null,8,"Rayo Zuliano",5,1,1,3,5,"6","4"]
[9,"JBL Zulia",14,1,4,9,6,18,7,null,9,"JBL Zulia",8,1,2,5,5,11,5,null,9,"JBL Zulia",6,0,2,4,1,7,2,null,2.5,9,"Local Andina",14,3,11,13,10,2.5,9,"Academia Rey",7,1,6,9,2,null,null,"Academia Rey",7,4,3,12,8,null,9,"JBL Zulia",5,0,1,4,2,"9","1"]
[10,"Llaneros",14,1,1,12,11,42,4,null,10,"Llaneros",7,1,1,5,8,20,4,null,10,"Llaneros",7,0,0,7,3,22,0,null,2.5,10,"Rayo Zuliano",14,3,11,9,8,2.5,10,"Rayo Zuliano",7,1,6,4,3,null,null,"Rayo Zuliano",7,2,5,5,5,null,10,"Llaneros",5,0,0,5,3,"19","0"]
[null,null,null,null,null,null,null,null,null,null,null,null,null,null,null,null,null,null,null,null,11,"","","","","","","","",null,null,null,null,null,null,null,null,null,null,null,null,null,null,null,null,null,null,null,"","","","","",""]
[null,null,null,null,null,null,null,null,null,null,null,null,null,null,null,null,null,null,null,null,12,"","","","","","","","",null,null,null,null,null,null,null,null,null,null,null,null,null,null,null,null,null,null,null,"","","","","",""]
[null,null,null,null,null,null,null,null,null,null,null,null,null,null,null,null,null,null,null,null,null,"","","","","","","","",null,null,null,null,null,null,null,null,null,null,null,null,null,null,null,null,null,null,null,"","","","","",""]
[null,null,null,null,null,null,null,null,null,null,null,null,null,null,null,null,null,null,null,null,null,"","","","","","","","",null,null,null,null,null,null,null,null,null,null,null,null,null,null,null,null,null,null,null,"","","","","",""]
[null,null,null,null,null,null,null,null,null,null,null,null,null,null,null,null,null,null,null,null,null,"","","","","","","","",null,null,null,null,null,null,null,null,null,null,null,null,null,null,null,null,null,null,null,"","","","","",""]
[null,null,null,null,null,null,null,null,null,null,null,null,null,null,null,null,null,null,null,null,null,"","","","","","","","",null,null,null,null,null,null,null,null,null,null,null,null,null,null,null,null,null,null,null,"","","","","",""]
[null,null,null,null,null,null,null,null,null,null,null,null,null,null,null,null,null,null,null,null,null,"","","","","","","","",null,null,null,null,null,null,null,null,null,null,null,null,null,null,null,null,null,null,null,"","","","","",""]
[null,null,null,null,null,null,null,null,null,null,null,null,null,null,null,null,null,null,null,null,null,"","","","","","","","",null,null,null,null,null,null,null,null,null,null,null,null,null,null,null,null,null,null,null,"","","","","",""]
[null,null,null,null,null,null,null,null,null,null,null,null,null,null,null,null,null,null,null,null,null,"","","","","","","","",null,null,null,null,null,null,null,null,null,null,null,null,null,null,null,null,null,null,null,"","","","","",""]
[null,null,null,null,null,null,null,null,null,null,null,null,null,null,null,null,null,null,null,null,null,"","","","","","","","",null,null,null,null,null,null,null,null,null,null,null,null,null,null,null,null,null,null,null,"","","","","",""]
[null,null,null,null,null,null,null,null,null,null,null,null,null,null,null,null,null,null,null,null,null,"","","","","","","","",null,null,null,null,null,null,null,null,null,null,null,null,null,null,null,null,null,null,null,"","","","","",""]
[null,null,null,null,null,null,null,null,null,null,null,null,null,null,null,null,null,null,null,null,null,"","",{"$f":"IFERROR(VLOOKUP(V23,$B$2:$I$35,3,FALSE)-N23,\"\")","v":""},"","","","","",null,null,null,null,null,null,null,null,null,null,null,null,null,null,null,null,null,null,null,"","","","","",""]
[null,null,null,null,null,null,null,null,null,null,null,null,null,null,null,null,null,null,null,null,null,"",{"$f":"IFERROR(VLOOKUP(V24,$B$2:$I$35,2,FALSE)-M24,\"\")","v":""},"","","","","","",null,null,null,null,null,null,null,null,null,null,null,null,null,null,null,null,null,null,null,"","","","","",""]
[null,null,null,null,null,null,null,null,null,null,null,null,null,null,null,null,null,null,null,null,null,"",{"$f":"IFERROR(VLOOKUP(V25,$B$2:$I$35,2,FALSE)-M25,\"\")","v":""},"","","","","","",null,null,null,null,null,null,null,null,null,null,null,null,null,null,null,null,null,null,null,"","","","","",""]
[null,null,null,null,null,null,null,null,null,null,null,null,null,null,null,null,null,null,null,null,null,"","","","","","","","",null,null,null,null,null,null,null,null,null,null,null,null,null,null,null,null,null,null,null,"","","","","",""]
[null,null,null,null,null,null,null,null,null,null,null,null,null,null,null,null,null,null,null,null,null,"","","","","","","","",null,null,null,null,null,null,null,null,null,null,null,null,null,null,null,null,null,null,null,"","","","","",""]
[null,null,null,null,null,null,null,null,null,null,null,null,null,null,null,null,null,null,null,null,null,"","","","","","","","",null,null,null,null,null,null,null,null,null,null,null,null,null,null,null,null,null,null,null,"","","","","",""]
[null,null,null,null,null,null,null,null,null,null,null,null,null,null,null,null,null,null,null,null,null,"","","","","","","","",null,null,null,null,null,null,null,null,null,null,null,null,null,null,null,null,null,null,null,"","","","","",""]
[null,null,null,null,null,null,null,null,null,null,null,null,null,null,null,null,null,null,null,null,null,"","","","","","","","",null,null,null,null,null,null,null,null,null,null,null,null,null,null,null,null,null,null,null,"","","","","",""]
[null,null,null,null,null,null,null,null,null,null,null,null,null,null,null,null,null,null,null,null,null,"","","","","","","","",null,null,null,null,null,null,null,null,null,null,null,null,null,null,null,null,null,null,null,"","","","","",""]
[null,null,null,null,null,null,null,null,null,null,null,null,null,null,null,null,null,null,null,null,null,"","","","","","","","",null,null,null,null,null,null,null,null,null,null,null,null,null,null,null,null,null,null,null,"","","","","",""]
[null,null,null,null,null,null,null,null,null,null,null,null,null,null,null,null,null,null,null,null,null,"","","","","","","","",null,null,null,null,null,null,null,null,null,null,null,null,null,null,null,null,null,null,null,"","","","","",""]
[null,null,null,null,null,null,null,null,null,null,null,null,null,null,null,null,null,null,null,null,null,"","","","","","","","",null,null,null,null,null,null,null,null,null,null,null,null,null,null,null,null,null,null,null,"","","","","",""]
[null,null,null,null,null,null,null,null,null,null,null,null,null,null,null,null,null,null,null,null,null,"","","","","","","","",null,null,null,null,null,null,null,null,null,null,null,null,null,null,null,null,null,null,null,"","","","","",""]
[null,"Curent match",null,null,null,"Previous match",null,null,null,null,"МАТЧ\n1","МАТЧ\nX","МАТЧ\n2","МАТЧ\n1Х","МАТЧ\n12","МАТЧ\nХ2","МАТЧ \nТБ 2.5","МАТЧ\nТМ 2.5","ОЗ ДА","ОЗ НЕТ",null,null,null,null,null,null,null,null,null,null,null,null,null,null,null,null,null,null,null,null,null,null,null,null,null,null,null,null,null,null,null,null,null,null,null,14,"Lugo",5,1,3,1,6,7,6]
["tour_name",null,null,null,null,"VENEZUELA: Segunda Division",null,null,null,null,null,null,null,null,null,null,null,null,null,null,null,null,null,null,null,null,null,null,null,null,null,null,null,null,null,null,null,null,null,null,null,null,null,null,null,null,null,null,null,null,null,null,null,null,null,15,"Cartagena",5,2,0,3,3,7,6]
["date_match",null,null,null,null,"30.09.2021 00:00",null,null,null,null,null,null,null,null,null,null,null,null,null,null,null,null,null,null,null,null,null,null,null,null,null,null,null,null,null,null,null,null,null,null,null,null,null,null,null,null,null,null,null,null,null,null,null,null,null,16,"Burgos CF",5,1,2,2,5,4,5]
["home_name",null,null,null,null,"Rayo Zuliano",null,null,null,null,null,null,null,null,null,null,null,null,null,null,null,null,null,null,null,null,null,null,null,null,null,null,null,null,null,null,null,null,null,null,null,null,null,null,null,null,null,null,null,null,null,null,null,null,null,17,"R. Sociedad B",5,1,2,2,3,4,5]
["away_name",null,null,null,null,"Academia Rey",null,null,null,null,null,null,null,null,null,null,null,null,null,null,null,null,null,null,null,null,null,null,null,null,null,null,null,null,null,null,null,null,null,null,null,null,null,null,null,null,null,null,null,null,null,null,null,null,null,18,"Zaragoza",5,1,2,2,3,5,5]
["match_id",null,null,null,null,"MXqYT87i",null,null,null,{"$f":"COUNTIF(TEMP!E:E,B41)","v":0},null,null,null,null,null,null,null,null,null,null,null,null,null,null,null,null,null,null,null,null,null,null,null,null,null,null,null,null,null,null,null,null,null,null,null,null,null,null,null,null,null,null,null,null,null,19,"Amorebieta",5,1,2,2,5,8,5]
["half_time",null,null,null,null,null,null,null,null,null,null,null,null,null,null,null,null,null,null,null,null,null,null,null,null,null,null,null,null,null,null,null,null,null,null,null,null,null,null,null,null,null,null,null,null,null,null,null,null,null,null,null,null,null,null,20,"Girona",5,1,1,3,4,6,4]
["full_time",null,null,null,null,null,null,null,null,{"$f":"IF(AND(J44>0,J45>0),1,0)","v":{"$error":"#N/A"}},null,null,null,null,null,null,null,null,null,null,null,null,null,null,null,null,null,null,null,null,null,null,null,null,null,null,null,null,null,null,null,null,null,null,null,null,null,null,null,null,null,null,null,null,null,22,"Leganes",5,0,2,3,3,6,2]
["home_id1",null,null,null,null,"l0k1Tw5i",null,null,null,{"$f":"MATCH(B39,B2:B35,0)","v":{"$error":"#N/A"}}]
["away_id1",null,null,null,null,"4rp8eIDa",null,null,null,{"$f":"MATCH(B40,B2:B35,0)","v":{"$error":"#N/A"}}]
["tournament_stage_id1",null,null,null,null,"2Fu3FeJA",null,null,null,{"$f":"IFERROR(J43,0)","v":0}]
["tournament_id1",null,null,null,null,"IFwmqnu0",null,null,null,{"$f":"IF(B37=F37,1,0)","v":0}]
[null,1]

{"sheet":"V31V34","index":3,"n_rows":75,"n_cols":39,"rows_kept":75,"cut":false,"hidden":true,"merged":[[25,0,26,6],[25,7,26,15],[27,14,27,15],[61,15,61,16],[9,33,10,39],[8,15,9,23],[22,21,22,22],[57,15,57,16],[57,30,57,31],[52,32,52,33],[55,32,55,33],[46,15,46,16],[46,30,46,31],[48,15,48,16],[48,30,48,31],[49,15,49,16],[39,32,39,33],[42,15,42,16],[42,17,42,18],[61,30,61,31],[42,30,42,31],[42,32,42,33],[44,15,44,16],[44,30,44,31],[43,15,43,16],[43,17,43,18],[44,17,44,18],[52,15,52,16],[52,17,52,18],[52,30,52,31],[55,15,55,16],[61,17,61,18],[55,17,55,18],[55,30,55,31],[56,15,56,16],[56,17,56,18],[57,17,57,18],[49,30,49,31],[6,15,6,16],[6,30,6,31],[9,30,9,31],[15,22,15,23],[35,15,35,16],[35,30,35,31],[36,15,36,16],[36,30,36,31],[39,15,39,16],[39,17,39,18],[39,30,39,31],[1,15,1,16],[1,30,1,31],[2,15,2,16],[2,30,2,31],[5,15,5,16],[5,30,5,31]]}
[null,null,null,null,null,null,null,null,null,null,null,null,null,null,null,null,"команда","и","в","н","п","з","п",null,null,null,null,null,null,null,null,"команда","и","в","н","п","з","п"]
[null,null,null,null,null,null,null,null,null,null,null,null,null,"Общая Турнирка",null,{"$f":"DataPort!B39","v":0},null,{"$f":"IFERROR(VLOOKUP(P2,DataPort!$B$2:$I$35,2,FALSE),0)","v":0},{"$f":"IF(VLOOKUP(P2,DataPort!$B$2:$I$35,3,FALSE)=0,0.0001,VLOOKUP(P2,DataPort!$B$2:$I$35,3,FALSE))","v":{"$error":"#N/A"}},{"$f":"IF(VLOOKUP(P2,DataPort!$B$2:$I$35,4,FALSE)=0,0.0001,VLOOKUP(P2,DataPort!$B$2:$I$35,4,FALSE))","v":{"$error":"#N/A"}},{"$f":"VLOOKUP(P2,DataPort!$B$2:$I$35,5,FALSE)","v":{"$error":"#N/A"}},{"$f":"VLOOKUP(P2,DataPort!$B$2:$I$35,6,FALSE)","v":{"$error":"#N/A"}},{"$f":"VLOOKUP(P2,DataPort!$B$2:$I$35,7,FALSE)","v":{"$error":"#N/A"}},null,null,null,null,null,null,null,{"$f":"P2","v":0},null,{"$f":"VLOOKUP(AE2,DataPort!$B$2:$I$35,2,FALSE)","v":{"$error":"#N/A"}},{"$f":"IF(VLOOKUP(AE2,DataPort!$B$2:$I$35,3,FALSE)=0,0.0001,VLOOKUP(AE2,DataPort!$B$2:$I$35,3,FALSE))","v":{"$error":"#N/A"}},{"$f":"IF(VLOOKUP(AE2,DataPort!$B$2:$I$35,4,FALSE)=0,0.0001,VLOOKUP(AE2,DataPort!$B$2:$I$35,4,FALSE))","v":{"$error":"#N/A"}},{"$f":"VLOOKUP(AE2,DataPort!$B$2:$I$35,5,FALSE)","v":{"$error":"#N/A"}},{"$f":"VLOOKUP(AE2,DataPort!$B$2:$I$35,6,FALSE)","v":{"$error":"#N/A"}},{"$f":"VLOOKUP(AE2,DataPort!$B$2:$I$35,7,FALSE)","v":{"$error":"#N/A"}}]
[null,null,null,null,null,null,null,null,null,null,null,null,null,null,null,{"$f":"DataPort!B40","v":0},null,{"$f":"IFERROR(VLOOKUP(P3,DataPort!$B$2:$I$35,2,FALSE),0)","v":0},{"$f":"IF(VLOOKUP(P3,DataPort!$B$2:$I$35,3,FALSE)=0,0.0001,VLOOKUP(P3,DataPort!$B$2:$I$35,3,FALSE))","v":{"$error":"#N/A"}},{"$f":"IF(VLOOKUP(P3,DataPort!$B$2:$I$35,4,FALSE)=0,0.0001,VLOOKUP(P3,DataPort!$B$2:$I$35,4,FALSE))","v":{"$error":"#N/A"}},{"$f":"VLOOKUP(P3,DataPort!$B$2:$I$35,5,FALSE)","v":{"$error":"#N/A"}},{"$f":"VLOOKUP(P3,DataPort!$B$2:$I$35,6,FALSE)","v":{"$error":"#N/A"}},{"$f":"VLOOKUP(P3,DataPort!$B$2:$I$35,7,FALSE)","v":{"$error":"#N/A"}},null,null,null,null,null,null,null,{"$f":"P3","v":0},null,{"$f":"VLOOKUP(AE3,DataPort!$B$2:$I$35,2,FALSE)","v":{"$error":"#N/A"}},{"$f":"IF(VLOOKUP(AE3,DataPort!$B$2:$I$35,3,FALSE)=0,0.0001,VLOOKUP(AE3,DataPort!$B$2:$I$35,3,FALSE))","v":{"$error":"#N/A"}},{"$f":"IF(VLOOKUP(AE3,DataPort!$B$2:$I$35,4,FALSE)=0,0.0001,VLOOKUP(AE3,DataPort!$B$2:$I$35,4,FALSE))","v":{"$error":"#N/A"}},{"$f":"VLOOKUP(AE3,DataPort!$B$2:$I$35,5,FALSE)","v":{"$error":"#N/A"}},{"$f":"VLOOKUP(AE3,DataPort!$B$2:$I$35,6,FALSE)","v":{"$error":"#N/A"}},{"$f":"VLOOKUP(AE3,DataPort!$B$2:$I$35,7,FALSE)","v":{"$error":"#N/A"}}]
[]
[null,null,null,null,null,null,null,null,null,null,null,null,null,"Турнирка Дома",null,null,"команда","и","в","н","п","з","п",null,null,null,null,null,null,null,null,"команда","и","в","н","п","з","п"]
[null,null,null,null,null,null,null,null,null,null,null,null,null,null,"дг",{"$f":"P2","v":0},null,{"$f":"VLOOKUP(P6,DataPort!$L$2:$S$35,2,FALSE)","v":{"$error":"#N/A"}},{"$f":"IF(VLOOKUP(P6,DataPort!$L$2:$S$35,3,FALSE)=0,0.0001,VLOOKUP(P6,DataPort!$L$2:$S$35,3,FALSE))","v":{"$error":"#N/A"}},{"$f":"IF(VLOOKUP(P6,DataPort!$L$2:$S$35,4,FALSE)=0,0.0001,VLOOKUP(P6,DataPort!$L$2:$S$35,4,FALSE))","v":{"$error":"#N/A"}},{"$f":"VLOOKUP(P6,DataPort!$L$2:$S$35,5,FALSE)","v":{"$error":"#N/A"}},{"$f":"VLOOKUP(P6,DataPort!$L$2:$S$35,6,FALSE)","v":{"$error":"#N/A"}},{"$f":"VLOOKUP(P6,DataPort!$L$2:$S$35,7,FALSE)","v":{"$error":"#N/A"}},null,null,null,null,null,null,null,{"$f":"AE2","v":0},null,{"$f":"VLOOKUP(AE6,DataPort!$L$2:$S$35,2,FALSE)","v":{"$error":"#N/A"}},{"$f":"IF(VLOOKUP(AE6,DataPort!$L$2:$S$35,3,FALSE)=0,0.0001,VLOOKUP(AE6,DataPort!$L$2:$S$35,3,FALSE))","v":{"$error":"#N/A"}},{"$f":"IF(VLOOKUP(AE6,DataPort!$L$2:$S$35,4,FALSE)=0,0.0001,VLOOKUP(AE6,DataPort!$L$2:$S$35,4,FALSE))","v":{"$error":"#N/A"}},{"$f":"VLOOKUP(AE6,DataPort!$L$2:$S$35,5,FALSE)","v":{"$error":"#N/A"}},{"$f":"VLOOKUP(AE6,DataPort!$L$2:$S$35,6,FALSE)","v":{"$error":"#N/A"}},{"$f":"VLOOKUP(AE6,DataPort!$L$2:$S$35,7,FALSE)","v":{"$error":"#N/A"}}]
[null,null,null,null,null,null,null,null,null,null,null,null,null,null,null,{"$f":"P3","v":0},null,{"$f":"VLOOKUP(P7,DataPort!$V$2:$AC$35,2,FALSE)","v":{"$error":"#N/A"}},{"$f":"IF(VLOOKUP(P7,DataPort!$V$2:$AC$35,3,FALSE)=0,0.00001,VLOOKUP(P7,DataPort!$V$2:$AC$35,3,FALSE))","v":{"$error":"#N/A"}},{"$f":"IF(VLOOKUP(P7,DataPort!$V$2:$AC$35,4,FALSE)=0,0.0001,VLOOKUP(P7,DataPort!$V$2:$AC$35,4,FALSE))","v":{"$error":"#N/A"}},{"$f":"VLOOKUP(P7,DataPort!$V$2:$AC$35,5,FALSE)","v":{"$error":"#N/A"}},{"$f":"VLOOKUP(P7,DataPort!$V$2:$AC$35,6,FALSE)","v":{"$error":"#N/A"}},{"$f":"VLOOKUP(P7,DataPort!$V$2:$AC$35,7,FALSE)","v":{"$error":"#N/A"}},null,null,null,null,null,null,null,{"$f":"AE3","v":0},null,{"$f":"VLOOKUP(AE7,DataPort!$V$2:$AC$35,2,FALSE)","v":{"$error":"#N/A"}},{"$f":"IF(VLOOKUP(AE7,DataPort!$V$2:$AC$35,3,FALSE)=0,0.00001,VLOOKUP(AE7,DataPort!$V$2:$AC$35,3,FALSE))","v":{"$error":"#N/A"}},{"$f":"IF(VLOOKUP(AE7,DataPort!$V$2:$AC$35,4,FALSE)=0,0.0001,VLOOKUP(AE7,DataPort!$V$2:$AC$35,4,FALSE))","v":{"$error":"#N/A"}},{"$f":"VLOOKUP(AE7,DataPort!$V$2:$AC$35,5,FALSE)","v":{"$error":"#N/A"}},{"$f":"VLOOKUP(AE7,DataPort!$V$2:$AC$35,6,FALSE)","v":{"$error":"#N/A"}},{"$f":"VLOOKUP(AE7,DataPort!$V$2:$AC$35,7,FALSE)","v":{"$error":"#N/A"}}]
[]
[null,null,null,null,null,null,null,null,null,null,null,null,null,null,null,"V 3_4_modTotal"]
[null,null,null,null,null,null,null,null,null,null,null,null,null,null,null,null,null,null,null,null,null,null,null,null,null,null,null,null,null,null,null,null,null,"V 3_1"]
[]
[null,null,null,null,null,null,null,null,null,null,null,null,null,null,null,null,null,null,null,"всего",{"$f":"Q16/(Q16+R16)","v":{"$error":"#N/A"}},{"$f":"R16/(R16+Q16)","v":{"$error":"#N/A"}}]
[null,null,null,null,null,null,null,null,null,null,null,null,null,null,null,null,null,null,null,"дома\\гости",{"$f":"Q23/(Q23+R23)","v":{"$error":"#N/A"}},{"$f":"R23/(R23+Q23)","v":{"$error":"#N/A"}}]
[null,null,null,null,null,null,null,null,null,null,null,null,null,null,null,"итого",{"$f":"V2/(R2)","v":{"$error":"#N/A"}},{"$f":"V3/(R3)","v":{"$error":"#N/A"}},null,"%%",{"$f":"(U12+U13)/2","v":{"$error":"#N/A"}},{"$f":"(V12+V13)/2","v":{"$error":"#N/A"}},{"$f":"IF(U14>0,\"+\",IF(U14<0,\"-\",\"\"))","v":{"$error":"#N/A"}},{"$f":"IF(V14>0,\"+\",IF(V14<0,\"-\",\"\"))","v":{"$error":"#N/A"}},null,null,null,null,null,null,"итого",{"$f":"AK2/(AG2)","v":{"$error":"#N/A"}},{"$f":"AK3/(AG3)","v":{"$error":"#N/A"}}]
[null,null,null,null,null,null,null,null,null,null,null,null,null,null,null,null,{"$f":"W2/(R2+U2)","v":{"$error":"#N/A"}},{"$f":"W3/(R3+U3)","v":{"$error":"#N/A"}},null,"всего",{"$f":"(S2+T2)/R2","v":{"$error":"#N/A"}},{"$f":"(S3+T3)/R3","v":{"$error":"#N/A"}},null,null,null,null,null,null,null,null,null,{"$f":"(AL2+AJ2)/AG2","v":{"$error":"#N/A"}},{"$f":"(AL3+AJ3)/AG3","v":{"$error":"#N/A"}},null,null,null,null,{"$f":"AH2/AG2","v":{"$error":"#N/A"}},{"$f":"AH3/AG3","v":{"$error":"#N/A"}}]
[null,null,null,null,null,null,null,null,null,null,null,null,null,null,null,null,{"$f":"Q14-Q15","v":{"$error":"#N/A"}},{"$f":"R14-R15","v":{"$error":"#N/A"}},null,"дома\\гости",{"$f":"(S6+T6)/(R6)","v":{"$error":"#N/A"}},{"$f":"(T7+S7)/(R7)","v":{"$error":"#N/A"}},"шанс на победу",null,null,null,null,null,null,null,null,{"$f":"AF14-AF15","v":{"$error":"#N/A"}},{"$f":"AG14-AG15","v":{"$error":"#N/A"}},null,null,null,null,{"$f":"AH6/AG6","v":{"$error":"#N/A"}},{"$f":"AH7/AG7","v":{"$error":"#N/A"}}]
[null,null,null,null,null,null,null,null,null,null,null,null,null,null,null,null,{"$f":"ROUND(Q16,SIGN(Q16)*1)","v":{"$error":"#N/A"}},{"$f":"ROUND(R16,SIGN(R16)*1)","v":{"$error":"#N/A"}},null,"1к%",{"$f":"U15*(1-V15)/(U15*(1-V15)+V15*(1-V15))","v":{"$error":"#N/A"}},{"$f":"U16*(1-V16)/(U16*(1-V16)+V16*(1-V16))","v":{"$error":"#N/A"}},{"$f":"(Q16+Q23)/2","v":{"$error":"#N/A"}},{"$f":"(R16+R23)/2","v":{"$error":"#N/A"}},null,null,null,null,null,null,null,{"$f":"IF(AF16<0,MROUND(AF16,0),IF(AF16>=0,MROUND(AF16,1)))","v":{"$error":"#N/A"}},{"$f":"IF(AG16<0,MROUND(AG16,0),IF(AG16>=0,MROUND(AG16,1)))","v":{"$error":"#N/A"}},null,null,null,null,{"$f":"AL15*(1-AM15)/(AL15*(1-AM15)+AM15*(1-AM15))","v":{"$error":"#N/A"}},{"$f":"AL16*(1-AM16)/(AL16*(1-AM16)+AM16*(1-AM16))","v":{"$error":"#N/A"}}]
[null,null,null,null,null,null,null,null,null,null,null,null,null,null,null,null,null,{"$f":"IF(Q17>1.1,\"Ф1(0)\",IF(R17>1.1,\"Ф2(0)\",\"Х\"))","v":{"$error":"#N/A"}},null,"2к%",{"$f":"1-U17","v":{"$error":"#N/A"}},{"$f":"1-V17","v":{"$error":"#N/A"}},{"$f":"MROUND(W17,SIGN(W17)*1)","v":{"$error":"#N/A"}},{"$f":"MROUND(X17,SIGN(X17)*1)","v":{"$error":"#N/A"}},null,null,null,null,null,null,null,null,{"$f":"IF(AF17>AG17,\"Ф1(0)\",IF(AG17>AF17,\"Ф2(0)\",\"Х\"))","v":{"$error":"#N/A"}},null,null,null,null,{"$f":"1-AL17","v":{"$error":"#N/A"}},{"$f":"1-AM17","v":{"$error":"#N/A"}}]
[null,null,null,null,null,null,null,null,null,null,null,null,null,null,null,null,null,null,null,null,"1к%","2к%",null,null,null,null,null,null,null,null,null,null,null,null,{"$f":"AF16+AF23","v":{"$error":"#N/A"}},{"$f":"AG16+AG23","v":{"$error":"#N/A"}}]
[null,null,null,null,null,null,null,null,null,null,null,null,null,null,null,null,null,null,null,null,{"$f":"(U17+V17)/2","v":{"$error":"#N/A"}},{"$f":"(U18+V18)/2","v":{"$error":"#N/A"}},null,null,null,null,null,null,null,null,null,null,null,null,null,null,null,{"$f":"(AL17+AM17)/2","v":{"$error":"#N/A"}}]
[null,null,null,null,null,null,null,null,null,null,null,null,null,null,null,"дома\\гости",{"$f":"V6/(R6)","v":{"$error":"#N/A"}},{"$f":"V7/(R7)","v":{"$error":"#N/A"}},null,null,null,null,null,null,null,null,null,null,null,null,"дома\\гости",{"$f":"AK6/AG6","v":{"$error":"#N/A"}},{"$f":"AK7/AG7","v":{"$error":"#N/A"}},null,null,null,null,{"$f":"(AL18+AM18)/2","v":{"$error":"#N/A"}}]
[null,null,null,null,null,null,null,null,null,null,null,null,null,null,null,null,{"$f":"W6/(R6+U6)","v":{"$error":"#N/A"}},{"$f":"W7/(R7+U7)","v":{"$error":"#N/A"}},null,null,null,null,null,null,null,null,null,null,null,null,null,{"$f":"(AL6+AJ6)/AG6","v":{"$error":"#N/A"}},{"$f":"(AL7+AJ7)/AG7","v":{"$error":"#N/A"}}]
[null,null,null,null,null,null,null,null,null,null,null,null,null,null,null,null,{"$f":"Q21-Q22","v":{"$error":"#N/A"}},{"$f":"R21-R22","v":{"$error":"#N/A"}},null,null,null,null,null,null,null,null,null,null,null,null,null,{"$f":"AF21-AF22","v":{"$error":"#N/A"}},{"$f":"AG21-AG22","v":{"$error":"#N/A"}}]
[null,null,null,null,null,null,null,null,null,null,null,null,null,null,null,null,{"$f":"ROUND(Q23,SIGN(Q23)*1)","v":{"$error":"#N/A"}},{"$f":"ROUND(R23,SIGN(R23)*1)","v":{"$error":"#N/A"}},null,null,null,null,null,null,null,null,null,null,null,null,null,{"$f":"IF(AF23<0,MROUND(AF23,0),IF(AF23>=0,MROUND(AF23,1)))","v":{"$error":"#N/A"}},{"$f":"IF(AG23<0,MROUND(AG23,0),IF(AG23>=0,MROUND(AG23,1)))","v":{"$error":"#N/A"}}]
[null,null,null,null,null,null,null,null,null,null,null,null,null,null,null,null,null,{"$f":"IF(Q24>1.1,\"Ф1(0)\",IF(R24>1.1,\"Ф2(0)\",\"Х\"))","v":{"$error":"#N/A"}},null,null,null,null,null,null,null,null,null,null,null,null,null,null,{"$f":"IF(AF24>AG24,\"Ф1(0)\",IF(AG24>AF24,\"Ф2(0)\",\"Х\"))","v":{"$error":"#N/A"}}]
["V 3_1",null,null,null,null,null,null,"V 3_4_modTotal"]
[]
["игры\n1","игры\n2","п 1%\n","п 2%\n","ИСХОД\n","\nФОРМА\nЛУЧШЕ\n","ТОТАЛ\n","п 1%\n","п 2%\n","ИСХОД\n","\nФОРМА\nЛУЧШЕ\n","ТОТАЛ\n","шанс \nп 1","шанс \nп 2","ВОЗМОЖНЫЙ\nТС",null,null,{"$f":"IF(R18=R25,R18)","v":{"$error":"#N/A"}},null,{"$f":"IF((Q17>R17)*(Q24>R24),\"1Х\",IF((R17>Q17)*(R24>Q24),\"Х2\",\"\"))","v":{"$error":"#N/A"}},null,null,null,null,null,null,null,null,null,null,null,null,{"$f":"IF(AG18=AG25,AG18)","v":{"$error":"#N/A"}},null,{"$f":"IF(AI19>AJ19,\"1Х\",IF(AJ19>AI19,\"Х2\",\"\"))","v":{"$error":"#N/A"}}]
["7","7",0.83333333333333337,0.16666666666666663,"1Х","-","ТМ3,5",0.4375,0.5625,"1Х",1,"ТМ3,5",0.19372294372294369,-0.27182539682539686,0,0]
[null,null,null,null,null,null,null,null,null,null,null,null,null,null,null,null,null,null,{"$f":"IF((R18=\"Ф1(0)\")*(R25=\"Ф1(0)\"),\"Ф1(0)\",IF((R18=\"Ф2(0)\")*(R25=\"Ф2(0)\"),\"Ф2(0)\",IF((R18=\"Х\")*(R25=\"Ф1(0)\"),\"Ф1(0)\",IF((R18=\"Х\")*(R25=\"Ф2(0)\"),\"Ф2(0)\",IF((R18=\"Ф1(0)\")*(R25=\"Х\"),\"Ф1(0)\",IF((R18=\"Ф2(0)\")*(R25=\"Х\"),\"Ф2(0)\",T28))))))","v":{"$error":"#N/A"}},null,null,null,null,null,null,null,null,null,null,null,null,null,null,{"$f":"IF((AG18=\"Ф1(0)\")*(AG25=\"Ф1(0)\"),\"Ф1(0)\",IF((AG18=\"Ф2(0)\")*(AG25=\"Ф2(0)\"),\"Ф2(0)\",IF((AG18=\"Х\")*(AG25=\"Ф1(0)\"),\"Ф1(0)\",IF((AG18=\"Х\")*(AG25=\"Ф2(0)\"),\"Ф2(0)\",AI28))))","v":{"$error":"#N/A"}}]
[{"$f":"A44","v":0},{"$f":"B44","v":0},{"$f":"IFERROR(AL20,\"\")","v":""},{"$f":"IFERROR(AL21,\"\")","v":""},{"$f":"IFERROR(AH30,\"\")","v":""},{"$f":"IFERROR(AF73,\"\")","v":""},{"$f":"IFERROR(AE62,\"\")","v":""},{"$f":"IFERROR(U20,\"\")","v":""},{"$f":"IFERROR(V20,\"\")","v":""},{"$f":"IFERROR(S30,\" \")","v":" "},{"$f":"IFERROR(Q73,\"\")","v":""},{"$f":"IFERROR(R62,\"\")","v":""},{"$f":"IFERROR(W17,\"\")","v":""},{"$f":"IFERROR(X17,\"\")","v":""},{"$f":"IFERROR(W18,\"\")","v":""},{"$f":"IFERROR(X18,\"\")","v":""}]
[]
[null,null,null,null,null,null,null,null,null,null,null,null,null,null,null,null,null,"Тоталов 2,5 ВСЕХ"]
["Всех матчей в чемпионате",null,null,null,null,null,null,null,null,null,null,null,null,null,null,"итого",null,null,null,null,null,null,null,null,null,null,null,null,null,null,"итого"]
[{"$f":"MAX(DataPort!A2:A35)","v":10},{"$f":"A35*2-2","v":18},null,null,null,null,null,null,null,null,null,null,null,null,null,null,"команда","и","б","м",null,null,null,null,null,null,null,null,null,null,null,"команда","и","б","м"]
[null,null,null,null,null,null,null,null,null,null,null,null,null,null,null,{"$f":"P2","v":0},null,{"$f":"VLOOKUP(P36,DataPort!$AG$2:$AL$35,2,FALSE)","v":{"$error":"#N/A"}},{"$f":"VLOOKUP(P36,DataPort!$AG$2:$AL$35,3,FALSE)","v":{"$error":"#N/A"}},{"$f":"VLOOKUP(P36,DataPort!$AG$2:$AL$35,4,FALSE)","v":{"$error":"#N/A"}},null,null,null,null,null,null,null,null,null,null,{"$f":"AE2","v":0},null,{"$f":"VLOOKUP(AE36,DataPort!$AG$2:$AL$35,2,FALSE)","v":{"$error":"#N/A"}},{"$f":"VLOOKUP(AE36,DataPort!$AG$2:$AL$35,3,FALSE)","v":{"$error":"#N/A"}},{"$f":"VLOOKUP(AE36,DataPort!$AG$2:$AL$35,4,FALSE)","v":{"$error":"#N/A"}}]
[{"$f":"IFERROR(R2,\"\")","v":0},{"$f":"IFERROR(R3,\"\")","v":0},null,null,null,null,null,null,null,null,null,null,null,null,null,{"$f":"P3","v":0},null,{"$f":"VLOOKUP(P37,DataPort!$AG$2:$AL$35,2,FALSE)","v":{"$error":"#N/A"}},{"$f":"VLOOKUP(P37,DataPort!$AG$2:$AL$35,3,FALSE)","v":{"$error":"#N/A"}},{"$f":"VLOOKUP(P37,DataPort!$AG$2:$AL$35,4,FALSE)","v":{"$error":"#N/A"}},null,null,null,null,null,null,null,null,null,null,{"$f":"AE3","v":0},null,{"$f":"VLOOKUP(AE37,DataPort!$AG$2:$AL$35,2,FALSE)","v":{"$error":"#N/A"}},{"$f":"VLOOKUP(AE37,DataPort!$AG$2:$AL$35,3,FALSE)","v":{"$error":"#N/A"}},{"$f":"VLOOKUP(AE37,DataPort!$AG$2:$AL$35,4,FALSE)","v":{"$error":"#N/A"}}]
[]
[{"$f":"A37/B35","v":0},{"$f":"B37/B35","v":0}]
[null,null,null,null,null,null,null,null,null,null,null,null,null,null,null,"тб",null,"тм",null,null,null,null,null,null,null,null,null,null,null,null,"тб",null,"тм"]
[{"$f":"TEXT(A39,\"0%\")","v":"0%"},{"$f":"TEXT(B39,\"0%\")","v":"0%"},null,null,null,null,null,null,null,null,null,null,null,null,null,{"$f":"S36/R36","v":{"$error":"#N/A"}},{"$f":"S37/R37","v":{"$error":"#N/A"}},{"$f":"T36/R36","v":{"$error":"#N/A"}},{"$f":"T37/R37","v":{"$error":"#N/A"}},null,{"$f":"(P41+Q41)/SUM(P41:S41)","v":{"$error":"#N/A"}},{"$f":"(R41+S41)/SUM(P41:S41)","v":{"$error":"#N/A"}},null,null,null,null,null,null,null,null,{"$f":"AH36/AG36","v":{"$error":"#N/A"}},{"$f":"AH37/AG37","v":{"$error":"#N/A"}},{"$f":"AI36/AG36","v":{"$error":"#N/A"}},{"$f":"AI37/AG37","v":{"$error":"#N/A"}},{"$f":"AE41+AF41","v":{"$error":"#N/A"}},{"$f":"AG41+AH41","v":{"$error":"#N/A"}}]
[]
[null,null,null,null,null,null,null,null,null,null,null,null,null,null,null,{"$f":"IF((P41+Q41)>1.2,\"ТБ1,5\",\"\")","v":{"$error":"#N/A"}},null,{"$f":"IF((R41+S41)>1.3,\"ТМ3,5\",\"\")","v":{"$error":"#N/A"}},null,null,{"$f":"IF(((P41+Q41)>1.1)*(U41>0.7),\"ТБ1,5\",\"\")","v":{"$error":"#N/A"}},{"$f":"IF(((R41+S41)>1.1)*(V41>0.7),\"ТМ3,5\",\"\")","v":{"$error":"#N/A"}},null,null,null,null,null,null,null,null,{"$f":"IF((AE41+AF41)>1.1,\"ТБ1,5\",\"\")","v":{"$error":"#N/A"}},null,{"$f":"IF((AG41+AH41)>1.3,\"ТМ3,5\",\"\")","v":{"$error":"#N/A"}}]
[{"$f":"A37","v":0},{"$f":"B37","v":0},null,null,null,null,null,null,null,null,null,null,null,null,null,{"$f":"IF((P41+Q41)>1.35,\"ТБ1,5\",\"\")","v":{"$error":"#N/A"}},null,{"$f":"IF((R41+S41)>1.35,\"ТМ3,5\",\"\")","v":{"$error":"#N/A"}}]
[null,null,null,null,null,null,null,null,null,null,null,null,null,null,null,{"$f":"P43&\"\"&R43","v":{"$error":"#N/A"}},null,{"$f":"P44&\"\"&R44","v":{"$error":"#N/A"}},null,"<< Total mod",null,null,null,null,null,null,null,null,null,null,{"$f":"AE43&\"\"&AG43","v":{"$error":"#N/A"}}]
[]
[null,null,null,null,null,null,null,null,null,null,null,null,null,null,null,"дома\\гости",null,null,null,null,null,null,null,null,null,null,null,null,null,null,"дома\\гости"]
[null,null,null,null,null,null,null,null,null,null,null,null,null,null,null,null,"команда","и","б","м",null,null,null,null,null,null,null,null,null,null,null,"команда","и","б","м"]
[null,null,null,null,null,null,null,null,null,null,null,null,null,null,null,{"$f":"P2","v":0},null,{"$f":"VLOOKUP(P49,DataPort!$AO$2:$AT$35,2,FALSE)","v":{"$error":"#N/A"}},{"$f":"VLOOKUP(P49,DataPort!$AO$2:$AT$35,3,FALSE)","v":{"$error":"#N/A"}},{"$f":"VLOOKUP(P49,DataPort!$AO$2:$AT$35,4,FALSE)","v":{"$error":"#N/A"}},null,null,null,null,null,null,null,null,null,null,{"$f":"AE2","v":0},null,{"$f":"VLOOKUP(AE49,DataPort!$AO$2:$AT$35,2,FALSE)","v":{"$error":"#N/A"}},{"$f":"VLOOKUP(AE49,DataPort!$AO$2:$AT$35,3,FALSE)","v":{"$error":"#N/A"}},{"$f":"VLOOKUP(AE49,DataPort!$AO$2:$AT$35,4,FALSE)","v":{"$error":"#N/A"}}]
[null,null,null,null,null,null,null,null,null,null,null,null,null,null,null,{"$f":"P3","v":0},null,{"$f":"VLOOKUP(P50,DataPort!$AW$2:$BB$35,2,FALSE)","v":{"$error":"#N/A"}},{"$f":"VLOOKUP(P50,DataPort!$AW$2:$BB$35,3,FALSE)","v":{"$error":"#N/A"}},{"$f":"VLOOKUP(P50,DataPort!$AW$2:$BB$35,4,FALSE)","v":{"$error":"#N/A"}},null,null,null,null,null,null,null,null,null,null,{"$f":"AE3","v":0},null,{"$f":"VLOOKUP(AE50,DataPort!$AW$2:$BB$35,2,FALSE)","v":{"$error":"#N/A"}},{"$f":"VLOOKUP(AE50,DataPort!$AW$2:$BB$35,3,FALSE)","v":{"$error":"#N/A"}},{"$f":"VLOOKUP(AE50,DataPort!$AW$2:$BB$35,4,FALSE)","v":{"$error":"#N/A"}}]
[]
[]
[null,null,null,null,null,null,null,null,null,null,null,null,null,null,null,"тб",null,"тм",null,null,null,null,null,null,null,null,null,null,null,null,"тб",null,"тм"]
[null,null,null,null,null,null,null,null,null,null,null,null,null,null,null,{"$f":"S49/R49","v":{"$error":"#N/A"}},{"$f":"S50/R50","v":{"$error":"#N/A"}},{"$f":"T49/R49","v":{"$error":"#N/A"}},{"$f":"T50/R50","v":{"$error":"#N/A"}},null,{"$f":"(P54+Q54)/SUM(P54:S54)","v":{"$error":"#N/A"}},{"$f":"(R54+S54)/SUM(P54:S54)","v":{"$error":"#N/A"}},null,null,null,null,null,null,null,null,{"$f":"AH49/AG49","v":{"$error":"#N/A"}},{"$f":"AH50/AG50","v":{"$error":"#N/A"}},{"$f":"AI49/AG49","v":{"$error":"#N/A"}},{"$f":"AI50/AG50","v":{"$error":"#N/A"}}]
[]
[null,null,null,null,null,null,null,null,null,null,null,null,null,null,null,{"$f":"IF((P54+Q54)>1.2,\"ТБ1,5\",\"\")","v":{"$error":"#N/A"}},null,{"$f":"IF((R54+S54)>1.3,\"ТМ3,5\",\"\")","v":{"$error":"#N/A"}},null,null,{"$f":"IF(((P54+Q54)>1.1)*(U54>0.7),\"ТБ1,5\",\"\")","v":{"$error":"#N/A"}},{"$f":"IF(((R54+S54)>1.1)*(V54>0.7),\"ТМ3,5\",\"\")","v":{"$error":"#N/A"}},null,null,null,null,null,null,null,null,{"$f":"IF((AE54+AF54)>1.1,\"ТБ1,5\",\"\")","v":{"$error":"#N/A"}},null,{"$f":"IF((AG54+AH54)>1.3,\"ТМ3,5\",\"\")","v":{"$error":"#N/A"}}]
[null,null,null,null,null,null,null,null,null,null,null,null,null,null,null,{"$f":"IF((P54+Q54)>1.35,\"ТБ1,5\",\"\")","v":{"$error":"#N/A"}},null,{"$f":"IF((R54+S54)>1.35,\"ТМ3,5\",\"\")","v":{"$error":"#N/A"}}]
[null,null,null,null,null,null,null,null,null,null,null,null,null,null,null,{"$f":"P56&\"\"&R56","v":{"$error":"#N/A"}},null,{"$f":"P57&\"\"&R57","v":{"$error":"#N/A"}},null,"<< Total mod",null,null,null,null,null,null,null,null,null,null,{"$f":"AE56&\"\"&AG56","v":{"$error":"#N/A"}}]
[]
[]
[]
[null,null,null,null,null,null,null,null,null,null,null,null,null,null,null,{"$f":"IF((P45=\"ТБ1,5\")*(P58=\"ТБ1,5\"),\"ТБ1,5\",IF((P45=\"ТМ3,5\")*(P58=\"ТМ3,5\"),\"ТМ3,5\",\"\"))","v":{"$error":"#N/A"}},null,{"$f":"IF((R45=\"ТБ1,5\")*(R58=\"ТБ1,5\"),\"ТБ1,5\",IF((R45=\"ТМ3,5\")*(R58=\"ТМ3,5\"),\"ТМ3,5\",\"\"))","v":{"$error":"#N/A"}},null,"<< Total mod",null,null,null,null,null,null,null,null,null,null,{"$f":"IF((AE45=\"ТБ1,5\")*(AE58=\"ТБ1,5\"),\"ТБ1,5\",IF((AE45=\"ТМ3,5\")*(AE58=\"ТМ3,5\"),\"ТМ3,5\",\"\"))","v":{"$error":"#N/A"}}]
[]
[null,null,null,null,null,null,null,null,null,null,null,null,null,null,"форма","и","в","н","п",null,null,null,null,null,null,null,null,null,null,"форма","и","в","н","п"]
[null,null,null,null,null,null,null,null,null,null,null,null,null,null,null,{"$f":"VLOOKUP(P49,DataPort!$BE$2:$BL$35,2,FALSE)","v":{"$error":"#N/A"}},{"$f":"VLOOKUP(P49,DataPort!$BE$2:$BL$35,3,FALSE)","v":{"$error":"#N/A"}},{"$f":"VLOOKUP(P49,DataPort!$BE$2:$BL$35,4,FALSE)","v":{"$error":"#N/A"}},{"$f":"VLOOKUP(P49,DataPort!$BE$2:$BL$35,5,FALSE)","v":{"$error":"#N/A"}},null,null,null,null,null,null,null,null,null,null,null,{"$f":"VLOOKUP(AE49,DataPort!$BE$2:$BL$35,2,FALSE)","v":{"$error":"#N/A"}},{"$f":"VLOOKUP(AE49,DataPort!$BE$2:$BL$35,3,FALSE)","v":{"$error":"#N/A"}},{"$f":"VLOOKUP(AE49,DataPort!$BE$2:$BL$35,4,FALSE)","v":{"$error":"#N/A"}},{"$f":"VLOOKUP(AE49,DataPort!$BE$2:$BL$35,5,FALSE)","v":{"$error":"#N/A"}}]
[null,null,null,null,null,null,null,null,null,null,null,null,null,null,null,{"$f":"VLOOKUP(P50,DataPort!$BE$2:$BL$35,2,FALSE)","v":{"$error":"#N/A"}},{"$f":"VLOOKUP(P50,DataPort!$BE$2:$BL$35,3,FALSE)","v":{"$error":"#N/A"}},{"$f":"VLOOKUP(P50,DataPort!$BE$2:$BL$35,4,FALSE)","v":{"$error":"#N/A"}},{"$f":"VLOOKUP(P50,DataPort!$BE$2:$BL$35,5,FALSE)","v":{"$error":"#N/A"}},null,null,null,null,null,null,null,null,null,null,null,{"$f":"VLOOKUP(AE50,DataPort!$BE$2:$BL$35,2,FALSE)","v":{"$error":"#N/A"}},{"$f":"VLOOKUP(AE50,DataPort!$BE$2:$BL$35,3,FALSE)","v":{"$error":"#N/A"}},{"$f":"VLOOKUP(AE50,DataPort!$BE$2:$BL$35,4,FALSE)","v":{"$error":"#N/A"}},{"$f":"VLOOKUP(AE50,DataPort!$BE$2:$BL$35,5,FALSE)","v":{"$error":"#N/A"}}]
[]
[]
[null,null,null,null,null,null,null,null,null,null,null,null,null,null,null,null,{"$f":"(Q65+(R65/P65))/P65","v":{"$error":"#N/A"}},null,{"$f":"(Q66+(R66/P66))/P66","v":{"$error":"#N/A"}},null,null,null,null,null,null,null,null,null,null,null,null,{"$f":"(AF65+AG65)/AE65","v":{"$error":"#N/A"}},null,{"$f":"(AF66+AG66)/AE66","v":{"$error":"#N/A"}}]
[null,null,null,null,null,null,null,null,null,null,null,null,null,null,null,null,{"$f":"S65/P65","v":{"$error":"#N/A"}},null,{"$f":"S66/P66","v":{"$error":"#N/A"}},null,null,null,null,null,null,null,null,null,null,null,null,{"$f":"AH65/AE65","v":{"$error":"#N/A"}},null,{"$f":"AH66/AE66","v":{"$error":"#N/A"}}]
[null,null,null,null,null,null,null,null,null,null,null,null,null,null,null,null,{"$f":"Q69-Q70","v":{"$error":"#N/A"}},null,{"$f":"S69-S70","v":{"$error":"#N/A"}},null,null,null,null,null,null,null,null,null,null,null,null,{"$f":"AF69-AF70","v":{"$error":"#N/A"}},null,{"$f":"AH69-AH70","v":{"$error":"#N/A"}}]
[]
[null,null,null,null,null,null,null,null,null,null,null,null,null,null,null,null,{"$f":"IF(Q71>S71,1,IF(S71>Q71,2,\"\"))","v":{"$error":"#N/A"}},null,null,null,null,null,null,null,null,null,null,null,null,null,null,{"$f":"IF(AG75>AH75,1,IF(AH75>AG75,2,\"\"))","v":{"$error":"#N/A"}}]
[]
[null,null,null,null,null,null,null,null,null,null,null,null,null,null,null,null,null,null,null,null,null,null,null,null,null,null,null,null,null,null,null,null,{"$f":"AF69/(AF69+AF70)","v":{"$error":"#N/A"}},{"$f":"AH69/(AH69+AH70)","v":{"$error":"#N/A"}}]

{"sheet":"TEMP","index":4,"n_rows":16,"n_cols":15,"rows_kept":16,"cut":false,"hidden":true,"merged":[]}
[]
[null,null,null,null,null,null,null,null,null,null,null,null,null,null,"AFHZxUPS"]
[null,null,null,null,null,null,null,null,null,null,null,null,null,null,"8G2WKU3p"]
[]
[null,null,null,null,null,null,null,null,null,null,null,null,null,null,"K0HkDtjt"]
[null,null,null,null,null,null,null,null,null,null,null,null,null,null,"ENGgC05n"]
[]
[null,null,null,null,null,null,null,null,null,null,null,null,null,null,"OnJA455O"]
[null,null,null,null,null,null,null,null,null,null,null,null,null,null,"lAOoA9ym"]
[]
[null,null,null,null,null,null,null,null,null,null,null,null,null,null,"nRohobQT"]
[]
[null,null,null,null,null,null,null,null,null,null,null,null,null,null,"n9ATwjJI"]
[null,null,null,null,null,null,null,null,null,null,null,null,null,null,"0CEXxAYO"]
[]
[null,null,null,null,null,null,null,null,null,null,null,null,null,null,"2JmtVPCR"]